Workbook

Sheet Introduction
C3: Low Carbon Fuel Standard Tier 1 CI Calculator for Sugarcane Ethanol (Release Date: 08/12/2024)
C4: The Tier 1 Calculator for Sugarcane Ethanol (T1 Sugarcane Calculator) offers a simplified interface for calculating the carbon intensity of sugarcane-derived ethanol produced from sugarcane juice or molasses feedstocks. To begin, navigate to the "Site-Specific Inputs" worksheet and enter all relevant project data. For Tier 1 pathways, a minimum of 3 months of operational data is required. Inputs entered by the applicant are limited to all yellow cells (see Color Key below). Inputs that do not apply to the fuel pathway may be left blank. Cells containing calculated or predefined input values may not be modified without DEQ approval via a Tier 2 pathway. Carbon Intensity (CI) results are provided on the "Pathway Summary" worksheet, along with calculated input results and finished fuel quantities. Pathway-specific Operating Conditions that may be added by DEQ prior to pathway certification. The "Predefined Inputs" worksheet contains input values, emission factors, and unit conversion tables from the Argonne National Labs GREET 2022 model, with additional modeling inputs from EPA eGRID, CARB EMFAC, Purdue University GTAP, Stanford OPGEE, and the CFP pathway database. The "Calculated Parameters" contains additional calculations to determine the upstream impacts (Mass Allocation Ratio) of Sugarcane Farming and Transport on the production of sugarcane molasses (a by-product of the Table Sugar production process) used for ethanol production. This model also permits the applicant to model the theoretical output of finished table sugar and ethanol produced, and compare it to the reported output of table sugar and ethanol produced. Additional Notes: In order for macros to function properly, the "Enable Content" button in Microsoft Excel must be selected upon opening this calculator. In order to ensure that CI calculations reflect the most recent inputs, select "Automatic" calculations from the "Calculation Options" in the "Formulas" toolbar or press F9 (if using Microsoft Excel).
D5: Color Key | F5: CFP Website Resources
D6: User Input | F6: CFP Program Overview
D7: Calculated Value | F7: Tier 1 Pathway Calculators and Instruction Manuals
D8: OR-GREET4.0 Input | F8: Tier 1 Pathway Application Process
D44: `

Sheet Site-Specific Inputs
B2: Section 1: Applicant Information | E2: Section 4: Monthly Operational Data
B3: 1.1 Application Number | F3: Feedstock Parameters | L3: Externally-Sourced Feedstock | N3: Externally-Sourced Biomass | P3: Process Energy | R3: Process Parameters | T3: Fuel and Co-Product Production | AC3: Section 1: Pathway Inputs Selection
B4: 1.2 Company Name | F4: Feedstock Procured | G4: Feedstock Transport | H4: Feedstock Procured | I4: Feedstock Transport | J4: Total Feedstock | K4: Feedstock Transport | L4: External Molasses | M4: Ethanol Produced | N4: External Biomass* | O4: Electricity Cogenerated | P4: Electricity Procured | Q4: Electricity Exported
B5: 1.3 Company ID | E5: 4.1 | F5: 4.2 | G5: 4.3 | H5: 4.4 | I5: 4.5 | J5: 4.6 | K5: 4.7 | L5: 4.8 | M5: 4.9 | N5: 4.1 | O5: 4.11 | P5: 4.12 | Q5: 4.13 | R5: 4.14 | S5: 4.15 | T5: 4.16 | U5: 4.17 | V5: 4.18 | W5: 4.19 | X5: 4.2 | Y5: 4.21 | Z5: 4.22 | AA5: 4.23
B6: 1.4 Fuel Production Facility Address | E6: Reporting Month | F6: Applicant-Owned Farms (Propria Farms) | G6: Transport Distance from Applicant-Owned Farms (weighted average) | H6: Partnership Farms (Terceiros Farms) | I6: Transport Distance from Partnership Farms (weighted average) | J6: Total Sugarcane Procured (Calculated) | K6: Filter Cake Transport & Distribution Distance (Calculated) | L6: Externally-Sourced Molasses | M6: Ethanol Produced from Externally-Sourced Molasses** | N6: Externally-Sourced Biomass (bagasse equivalents) | O6: Electricity Generated from Externally-Sourced Biomass** | P6: Electricity Purchased from the Public Grid | Q6: Surplus Cogenerated Electricity Exported | R6: Juice Share for Sugar Production (weighted average) | S6: Fraction Sucrose Content of Juice (weighted average) | T6: Anhydrous Ethanol Produced | U6: Moisture Content (Anhydrous Ethanol) | V6: Adjusted Anhydrous Ethanol Produced | W6: Hydrous Ethanol Produced | X6: Moisture Content (Hydrous Ethanol) | Y6: Adjusted Hydrous Ethanol Produced | Z6: Finished or Table Sugar Produced | AA6: Total Ethanol Produced
B7: 1.5 Facility ID
E8: Month/YYYY | F8: metric tons (tonnes) | G8: km | H8: metric tons (tonnes) | I8: km | J8: metric tons (tonnes) | K8: km | L8: metric tons (tonnes) | M8: m3 | N8: metric tons (tonnes) | O8: kWh | P8: kWh | Q8: kWh | R8: % | S8: "0.000" | T8: m3 (Reported at 20 C/68 F) | U8: % | V8: wet m3 | W8: m3 (Reported at 20 C/68 F) | X8: % | Y8: wet m3 | Z8: metric tons (tonnes) | AA8: m3, dry basis
B9: Section 2: Pathway Inputs | J9: =IFERROR(IF((F9+H9)>0,(F9+H9),"0"),"") -> 0 | K9: =IFERROR(((F9*G9+H9*I9)/J9)+2/AQ$56,"0") -> 0 | O9: =IF((N9*('OR-GREET4.0'!E$44-'Calculated Parameters'!$D$156)*'OR-GREET4.0'!E$46*'OR-GREET4.0'!E$47*'OR-GREET4.0'!E$48/kWh2Btu)>0,(N9*('OR-GREET4.0'!E$44-'Calculated Parameters'!$D$156)*'OR-GREET4.0'!E$46*'OR-GREET4.0'!E$47*'OR-GREET4.0'!E$48/kWh2Btu),0) -> 0 | V9: =IFERROR(IF((T9-M9*$W$34)>0,(T9-M9*$W$34),0),"0") -> 0 | Y9: =IFERROR(IF((W9-M9*$Z$34)>0,(W9-M9*$Z$34),0),"0") -> 0 | AA9: =IFERROR(V9*(1-U9)+Y9*(1-X9),"0") -> 0
B10: 2.1 Pathway CIs | C10: Composite | J10: 0 | K10: 0 | O10: =IF((N10*('OR-GREET4.0'!E$44-'Calculated Parameters'!$D$156)*'OR-GREET4.0'!E$46*'OR-GREET4.0'!E$47*'OR-GREET4.0'!E$48/kWh2Btu)>0,(N10*('OR-GREET4.0'!E$44-'Calculated Parameters'!$D$156)*'OR-GREET4.0'!E$46*'OR-GREET4.0'!E$47*'OR-GREET4.0'!E$48/kWh2Btu),0) -> 0 | V10: 0 | Y10: 0 | AA10: =IFERROR(V10*(1-U10)+Y10*(1-X10),"0") -> 0
B11: 2.2 Feedstocks | J11: 0 | K11: 0 | O11: =IF((N11*('OR-GREET4.0'!E$44-'Calculated Parameters'!$D$156)*'OR-GREET4.0'!E$46*'OR-GREET4.0'!E$47*'OR-GREET4.0'!E$48/kWh2Btu)>0,(N11*('OR-GREET4.0'!E$44-'Calculated Parameters'!$D$156)*'OR-GREET4.0'!E$46*'OR-GREET4.0'!E$47*'OR-GREET4.0'!E$48/kWh2Btu),0) -> 0 | V11: 0 | Y11: 0 | AA11: =IFERROR(V11*(1-U11)+Y11*(1-X11),"0") -> 0
J12: 0 | K12: 0 | O12: =IF((N12*('OR-GREET4.0'!E$44-'Calculated Parameters'!$D$156)*'OR-GREET4.0'!E$46*'OR-GREET4.0'!E$47*'OR-GREET4.0'!E$48/kWh2Btu)>0,(N12*('OR-GREET4.0'!E$44-'Calculated Parameters'!$D$156)*'OR-GREET4.0'!E$46*'OR-GREET4.0'!E$47*'OR-GREET4.0'!E$48/kWh2Btu),0) -> 0 | V12: 0 | Y12: 0 | AA12: 0
B13: 2.3 Process Energy | J13: 0 | K13: 0 | O13: =IF((N13*('OR-GREET4.0'!E$44-'Calculated Parameters'!$D$156)*'OR-GREET4.0'!E$46*'OR-GREET4.0'!E$47*'OR-GREET4.0'!E$48/kWh2Btu)>0,(N13*('OR-GREET4.0'!E$44-'Calculated Parameters'!$D$156)*'OR-GREET4.0'!E$46*'OR-GREET4.0'!E$47*'OR-GREET4.0'!E$48/kWh2Btu),0) -> 0 | V13: 0 | Y13: 0 | AA13: 0
J14: 0 | K14: 0 | O14: =IF((N14*('OR-GREET4.0'!E$44-'Calculated Parameters'!$D$156)*'OR-GREET4.0'!E$46*'OR-GREET4.0'!E$47*'OR-GREET4.0'!E$48/kWh2Btu)>0,(N14*('OR-GREET4.0'!E$44-'Calculated Parameters'!$D$156)*'OR-GREET4.0'!E$46*'OR-GREET4.0'!E$47*'OR-GREET4.0'!E$48/kWh2Btu),0) -> 0 | V14: 0 | Y14: 0 | AA14: 0
B15: 2.4 Coproduct | J15: 0 | K15: 0 | O15: =IF((N15*('OR-GREET4.0'!E$44-'Calculated Parameters'!$D$156)*'OR-GREET4.0'!E$46*'OR-GREET4.0'!E$47*'OR-GREET4.0'!E$48/kWh2Btu)>0,(N15*('OR-GREET4.0'!E$44-'Calculated Parameters'!$D$156)*'OR-GREET4.0'!E$46*'OR-GREET4.0'!E$47*'OR-GREET4.0'!E$48/kWh2Btu),0) -> 0 | V15: 0 | Y15: 0 | AA15: =IFERROR(V15*(1-U15)+Y15*(1-X15),"0") -> 0
B16: 2.5 Finished Products | J16: 0 | K16: 0 | O16: =IF((N16*('OR-GREET4.0'!E$44-'Calculated Parameters'!$D$156)*'OR-GREET4.0'!E$46*'OR-GREET4.0'!E$47*'OR-GREET4.0'!E$48/kWh2Btu)>0,(N16*('OR-GREET4.0'!E$44-'Calculated Parameters'!$D$156)*'OR-GREET4.0'!E$46*'OR-GREET4.0'!E$47*'OR-GREET4.0'!E$48/kWh2Btu),0) -> 0 | V16: 0 | Y16: 0 | AA16: 0
J17: 0 | K17: 0 | O17: =IF((N17*('OR-GREET4.0'!E$44-'Calculated Parameters'!$D$156)*'OR-GREET4.0'!E$46*'OR-GREET4.0'!E$47*'OR-GREET4.0'!E$48/kWh2Btu)>0,(N17*('OR-GREET4.0'!E$44-'Calculated Parameters'!$D$156)*'OR-GREET4.0'!E$46*'OR-GREET4.0'!E$47*'OR-GREET4.0'!E$48/kWh2Btu),0) -> 0 | V17: 0 | Y17: 0 | AA17: 0
B18: 2.6 Fuel Transport & Distribution | J18: 0 | K18: 0 | O18: =IF((N18*('OR-GREET4.0'!E$44-'Calculated Parameters'!$D$156)*'OR-GREET4.0'!E$46*'OR-GREET4.0'!E$47*'OR-GREET4.0'!E$48/kWh2Btu)>0,(N18*('OR-GREET4.0'!E$44-'Calculated Parameters'!$D$156)*'OR-GREET4.0'!E$46*'OR-GREET4.0'!E$47*'OR-GREET4.0'!E$48/kWh2Btu),0) -> 0 | V18: 0 | Y18: 0 | AA18: 0
J19: 0 | K19: 0 | O19: =IF((N19*('OR-GREET4.0'!E$44-'Calculated Parameters'!$D$156)*'OR-GREET4.0'!E$46*'OR-GREET4.0'!E$47*'OR-GREET4.0'!E$48/kWh2Btu)>0,(N19*('OR-GREET4.0'!E$44-'Calculated Parameters'!$D$156)*'OR-GREET4.0'!E$46*'OR-GREET4.0'!E$47*'OR-GREET4.0'!E$48/kWh2Btu),0) -> 0 | V19: 0 | Y19: 0 | AA19: 0
J20: 0 | K20: 0 | O20: =IF((N20*('OR-GREET4.0'!E$44-'Calculated Parameters'!$D$156)*'OR-GREET4.0'!E$46*'OR-GREET4.0'!E$47*'OR-GREET4.0'!E$48/kWh2Btu)>0,(N20*('OR-GREET4.0'!E$44-'Calculated Parameters'!$D$156)*'OR-GREET4.0'!E$46*'OR-GREET4.0'!E$47*'OR-GREET4.0'!E$48/kWh2Btu),0) -> 0 | V20: 0 | Y20: 0 | AA20: 0
B21: 2.7 Port of Ethanol Export | C21: Port of Santos (Sao Paulo) | J21: 0 | K21: 0 | O21: =IF((N21*('OR-GREET4.0'!E$44-'Calculated Parameters'!$D$156)*'OR-GREET4.0'!E$46*'OR-GREET4.0'!E$47*'OR-GREET4.0'!E$48/kWh2Btu)>0,(N21*('OR-GREET4.0'!E$44-'Calculated Parameters'!$D$156)*'OR-GREET4.0'!E$46*'OR-GREET4.0'!E$47*'OR-GREET4.0'!E$48/kWh2Btu),0) -> 0 | V21: 0 | Y21: 0 | AA21: 0
B22: 2.8 Ethanol Sold | C22: Anhydrous Only; Undenatured | J22: 0 | K22: 0 | O22: =IF((N22*('OR-GREET4.0'!E$44-'Calculated Parameters'!$D$156)*'OR-GREET4.0'!E$46*'OR-GREET4.0'!E$47*'OR-GREET4.0'!E$48/kWh2Btu)>0,(N22*('OR-GREET4.0'!E$44-'Calculated Parameters'!$D$156)*'OR-GREET4.0'!E$46*'OR-GREET4.0'!E$47*'OR-GREET4.0'!E$48/kWh2Btu),0) -> 0 | V22: 0 | Y22: 0 | AA22: 0
B23: 2.9 Choose Region the for Burn Area Evaluation | C23: Standard for Non-Sao Paulo States | J23: 0 | K23: 0 | O23: =IF((N23*('OR-GREET4.0'!E$44-'Calculated Parameters'!$D$156)*'OR-GREET4.0'!E$46*'OR-GREET4.0'!E$47*'OR-GREET4.0'!E$48/kWh2Btu)>0,(N23*('OR-GREET4.0'!E$44-'Calculated Parameters'!$D$156)*'OR-GREET4.0'!E$46*'OR-GREET4.0'!E$47*'OR-GREET4.0'!E$48/kWh2Btu),0) -> 0 | V23: 0 | Y23: 0 | AA23: 0
B24: ** Requires an Operating Condition from DEQ | J24: 0 | K24: 0 | O24: =IF((N24*('OR-GREET4.0'!E$44-'Calculated Parameters'!$D$156)*'OR-GREET4.0'!E$46*'OR-GREET4.0'!E$47*'OR-GREET4.0'!E$48/kWh2Btu)>0,(N24*('OR-GREET4.0'!E$44-'Calculated Parameters'!$D$156)*'OR-GREET4.0'!E$46*'OR-GREET4.0'!E$47*'OR-GREET4.0'!E$48/kWh2Btu),0) -> 0 | V24: 0 | Y24: 0 | AA24: 0
B25: Section 3: Static Operational Data | J25: 0 | K25: 0 | O25: =IF((N25*('OR-GREET4.0'!E$44-'Calculated Parameters'!$D$156)*'OR-GREET4.0'!E$46*'OR-GREET4.0'!E$47*'OR-GREET4.0'!E$48/kWh2Btu)>0,(N25*('OR-GREET4.0'!E$44-'Calculated Parameters'!$D$156)*'OR-GREET4.0'!E$46*'OR-GREET4.0'!E$47*'OR-GREET4.0'!E$48/kWh2Btu),0) -> 0 | V25: 0 | Y25: 0 | AA25: 0
B26: 3.1 Grid Electricity Region | C26: Brazil | J26: 0 | K26: 0 | O26: =IF((N26*('OR-GREET4.0'!E$44-'Calculated Parameters'!$D$156)*'OR-GREET4.0'!E$46*'OR-GREET4.0'!E$47*'OR-GREET4.0'!E$48/kWh2Btu)>0,(N26*('OR-GREET4.0'!E$44-'Calculated Parameters'!$D$156)*'OR-GREET4.0'!E$46*'OR-GREET4.0'!E$47*'OR-GREET4.0'!E$48/kWh2Btu),0) -> 0 | V26: 0 | Y26: 0 | AA26: 0
B27: 3.2 Biomass-to-Bagasse Equivalent Multiplier | C27: Consult DEQ Staff | J27: 0 | K27: 0 | O27: =IF((N27*('OR-GREET4.0'!E$44-'Calculated Parameters'!$D$156)*'OR-GREET4.0'!E$46*'OR-GREET4.0'!E$47*'OR-GREET4.0'!E$48/kWh2Btu)>0,(N27*('OR-GREET4.0'!E$44-'Calculated Parameters'!$D$156)*'OR-GREET4.0'!E$46*'OR-GREET4.0'!E$47*'OR-GREET4.0'!E$48/kWh2Btu),0) -> 0 | V27: 0 | Y27: 0 | AA27: 0
B28: 3.3 Denaturant Accounting | C28: Default 2.5% CBOB Blend | J28: 0 | K28: 0 | O28: =IF((N28*('OR-GREET4.0'!E$44-'Calculated Parameters'!$D$156)*'OR-GREET4.0'!E$46*'OR-GREET4.0'!E$47*'OR-GREET4.0'!E$48/kWh2Btu)>0,(N28*('OR-GREET4.0'!E$44-'Calculated Parameters'!$D$156)*'OR-GREET4.0'!E$46*'OR-GREET4.0'!E$47*'OR-GREET4.0'!E$48/kWh2Btu),0) -> 0 | V28: 0 | Y28: 0 | AA28: 0
B29: Ethanol Transport | J29: 0 | K29: 0 | O29: =IF((N29*('OR-GREET4.0'!E$44-'Calculated Parameters'!$D$156)*'OR-GREET4.0'!E$46*'OR-GREET4.0'!E$47*'OR-GREET4.0'!E$48/kWh2Btu)>0,(N29*('OR-GREET4.0'!E$44-'Calculated Parameters'!$D$156)*'OR-GREET4.0'!E$46*'OR-GREET4.0'!E$47*'OR-GREET4.0'!E$48/kWh2Btu),0) -> 0 | V29: 0 | Y29: 0 | AA29: 0
B30: 3.4 From Ethanol Plant By Truck (km) | J30: 0 | K30: 0 | O30: =IF((N30*('OR-GREET4.0'!E$44-'Calculated Parameters'!$D$156)*'OR-GREET4.0'!E$46*'OR-GREET4.0'!E$47*'OR-GREET4.0'!E$48/kWh2Btu)>0,(N30*('OR-GREET4.0'!E$44-'Calculated Parameters'!$D$156)*'OR-GREET4.0'!E$46*'OR-GREET4.0'!E$47*'OR-GREET4.0'!E$48/kWh2Btu),0) -> 0 | V30: 0 | Y30: 0 | AA30: 0
B31: 3.5 By Pipeline (km) | J31: 0 | K31: 0 | O31: =IF((N31*('OR-GREET4.0'!E$44-'Calculated Parameters'!$D$156)*'OR-GREET4.0'!E$46*'OR-GREET4.0'!E$47*'OR-GREET4.0'!E$48/kWh2Btu)>0,(N31*('OR-GREET4.0'!E$44-'Calculated Parameters'!$D$156)*'OR-GREET4.0'!E$46*'OR-GREET4.0'!E$47*'OR-GREET4.0'!E$48/kWh2Btu),0) -> 0 | V31: 0 | Y31: 0 | AA31: 0
B32: 3.6 Ocean Transport Route to Oregon | C32: Via Panama Canal | J32: 0 | K32: 0 | O32: =IF((N32*('OR-GREET4.0'!E$44-'Calculated Parameters'!$D$156)*'OR-GREET4.0'!E$46*'OR-GREET4.0'!E$47*'OR-GREET4.0'!E$48/kWh2Btu)>0,(N32*('OR-GREET4.0'!E$44-'Calculated Parameters'!$D$156)*'OR-GREET4.0'!E$46*'OR-GREET4.0'!E$47*'OR-GREET4.0'!E$48/kWh2Btu),0) -> 0 | V32: 0 | Y32: =IFERROR(IF((W32-M32*$Z$34)>0,(W32-M32*$Z$34),0),"0") -> 0 | AA32: =IFERROR(V32*(1-U32)+Y32*(1-X32),"0") -> 0
B33: 3.7 Ethanol Tranpsort by Ocean Tanker (km) | E33: 2-Year Total | F33: =SUM(F9:F32) -> 0 | G33: =IFERROR(SUMPRODUCT(F9:F32,G9:G32)/F33,0) -> 0 | H33: =SUM(H9:H32) -> 0 | I33: =IFERROR(SUMPRODUCT(H9:H32,I9:I32)/H$33,0) -> 0 | J33: =IFERROR(SUM(J9:J32),"") -> 0 | K33: =IFERROR(AVERAGE(K9:K32),"0.0") -> 0.0 | L33: =SUM(L9:L32) -> 0 | M33: =SUM(M9:M32) -> 0 | N33: =SUM(N9:N32) -> 0 | O33: 0 | P33: 0 | Q33: 0 | R33: =IFERROR(SUMPRODUCT($J9:$J32,$R9:$R32)/$J33,0) -> 0 | S33: =IFERROR(SUMPRODUCT($J9:$J32,$S9:$S32)/$J$33,"0.0") -> 0.0 | T33: =SUM(T9:T32) -> 0 | U33: =IFERROR(SUMPRODUCT($T9:$T32*$U9:$U32)/$T$33,"0.00%") -> 0.00% | V33: =SUM(V9:V32) -> 0 | W33: =SUM(W9:W32) -> 0 | X33: =IFERROR(SUMPRODUCT($W9:$W32*$X9:$X32)/$W$33,"0.00%") -> 0.00% | Y33: =SUM(Y9:Y32) -> 0 | Z33: =IFERROR(SUM(Z9:Z32),"0") -> 0 | AA33: =IF(SUM(AA8:AA32)>0,SUM(AA8:AA32),0) -> 0
B34: 3.8 Oregon Port to Terminal (miles) | C34: 40 | E34: *Externally-sourced non-bagasse biomass must be reported as bagasse equivalent biomass. Consult CARB Staff for Operating Condition. | W34: =IFERROR(T33/(T33+W33),"") ->  | Z34: =IFERROR(1-W34,"") ->  | BD34: ='EF Tables'!Z74-'EF Tables'!AA74 -> 0
B35: 3.9 Terminal to Refueling Stations (miles) | C35: 50 | Z35: Total Ethanol (gal): | AA35: =IF(AA33*264.1593>0,AA33*264.1593,"0") -> 0
B36: 3.10 Applicable Credit for Mechanized Harvesting | C36: =IF('Site-Specific Inputs'!C$23="","",IF('Site-Specific Inputs'!$C$23="Standard for Sao Paulo State",'OR-GREET4.0'!E31,'OR-GREET4.0'!E32)) -> 0.65
B39: 2.5 Provisional Pathway Application (Y/N):
F42: 3.5 Ethanol Transport Distance by Truck from Oregon Port to Terminal (miles):
F43: 3.6 Ethanol Transport Distance by Truck from Oregon Terminal to Refueling Station (miles)
D44: 3.4 Anhydrous Ethanol Transport Distance by Ocean Tanker to Oregon (km):
AO45: g2T | AQ45: 1.10231e-06
AO46: gal2L | AQ46: 3.785411
AO47: MT2T | AQ47: 1.102311311
AO49: m32gal | AQ49: 264.1721071
AO51: Ethanol energy density (MJ/gal) | AQ51: 80.53241303
AO52: Ethanol LHV (Btu/gal) | AQ52: 76330
AO53: kWh2Btu | AQ53: 3412.141642
AO54: Btu2J | AQ54: 1055.05585
AO56: km2mi | AQ56: 0.6213711922
AQ57: ='EF Tables'!Z74+'EF Tables'!Z75 -> 0

Sheet Calculated Parameters
B3: Section 5: Calculation of Production Yields and Mass Allocation Ratio
B4: Step 5.a: It is imperative that any previous versions of the Tier 1 Simplified CI Calculator for Sugarcane Ethanol (v.3.0) be closed. Select "Data" from the Excel File Menu (Header) above. Then Click the "Solver" icon menu above to the far right of the header. Ensure that the "Set Objective" refers to Cell E27, and is set to a value of 0.0. See instructions below to install the "Solver AddIn" functionality to your current version of Microsoft Excel.
B5: Step 5.b: Do not change any of the constraints defined in the window (see Section 5 User Instruction in the Instruction Manual for the Simplified CI Calculator). Then Click the "Solve" Button.
B6: Step 5.c: The Solver will go through several iterations to find a solution. The "Calculate CI" may need to be executed repeatedly if the iterations are not automatic until a solution is found. A new window "Solver Results" will open up. Solver will display the message that a solution has been found.
B7: Step 5.d: Click OK. If a solution has not been found, it is an indication that there is a material imbalance. Check the "Site-Specific Inputs" data for accuracy, then repeat Step 5.a until a solution has been found, and all constraints and optimality conditions have been satisfied.
B8: Step 5.e: If a solution has not still been found, then check the juice shares (fraction juice allocated to sugar production), and the fraction of sucrose in the cane juice that enters production. The level of sucrose (eta_j) could be lower due to process losses even if measured higher at the gate or after crush.
B9: Gopal-Kammen Model Parameters | H9: Instructions to Install "Solver Add-In" Functionality to Current Version of Microsoft Excel
B10: Mill-specific values for ethanol yield calculation and ethanol production modeling | H10: 1. Click or go to "File" in the Header Menu
B11: 5.1 ηj (tonnes of fermentable sugars in juice/tonne of cane) | G11: ='Site-Specific Inputs'!$S$33 -> 0.0 | H11: 2. Click or Select "Options" on the far Left Side Menu.
B12: 5.2 ηs (tonnes of sucrose in final sugar/tonne of sucrose into sugar factory) | G12: 0.4478523154 | H12: 3. A new Window "Excel Options" opens up. Select "Add-ins" on the Left Side Menu.
B13: 5.3 Sucrose in Molasses (tonnes sucrose in molasses/tonne of sugarcane) | G13: =eta_j*(1-eta_s) -> 0 | H13: 4. In the Dialogue Box Select "Solver Add-in" either in the "Active Application," or "Inactive Application Add-ins." Click OK. | AJ13: Standard Value
B14: 5.4 ηe (dry tonnes of EtOH/tonne of fermentable sugars into distillery) | G14: 0.4755493167 | H14: 5. If you don’t see the "Solver Add-in," do the following: | AJ14: User Defined
B15: 5.5 LHV of anhydrous EtOH (MMBtu/dry tonne EtOH) | E15: Select Standard or User Values from the Drop Down Menus Below | F15: Enter User Defined Values Below, if Applicable, then Press F9. | G15: 25.54551539 | H15: 6. At the Bottom of the Dialogue Box, Select or Manage "Excel Add-Ins" from the Drop-down Menu. Then Select "Go." | AJ15: Standard Value
B16: 5.6 Choose ms (tonnes of sucrose in final sugar/tonne of final sugar product) | E16: Standard Value | F16: 0.995 | G16: =IF(E16="Standard Value",0.99,F16) -> 0.99 | H16: 7. An "Add-Ins" Window will Open. In the Window, Select or Check the Box for "Solver Add-in," | AJ16: User Defined
B17: 5.7 Choose mm (tonnes of fermentable sugars in std molasses/tonne of std molasses) | E17: Standard Value | F17: 0.525 | G17: =IF(E17="Standard Value",0.5,F17) -> 0.5 | H17: and the Box for "Analysis ToolPak." Then Click OK.
B18: Yield of Finished Sugar, Standard Molasses, and Ethanol | F18: Cane Juice-to-Molasses | G18: Cane Juice-to-Ethanol | H18: 8. Go to the Excel Header Menu and select "Data." The "Solver" function (?->) is located at the far right in the "Analyze" box.
B19: Fraction of sugarcane juice sent to finished sugar | F19: 1 | G19: 0
B20: Finished sugar yield (tonnes of finished sugar/tonne of cane) | F20: =F19*$G$11*$G$12/$G$16 -> 0 | G20: =G19*$G$11*$G$12/$G$16 -> 0
B21: By-product molasses yield (tonnes of std molasses/tonnes of cane) | F21: =F19*$G$13/$G$17 -> 0 | G21: =G19*$G$13/$G$17 -> 0
B22: EtOH Yield (liters of EtOH/metric tonne cane) | F22: =$G$14*$G$11*(1-F19*$G$12)/('OR-GREET4.0'!F$77*'OR-GREET4.0'!C$97/'OR-GREET4.0'!F$101) -> 0 | G22: =$G$14*$G$11*(1-G19*$G$12)/('OR-GREET4.0'!F$77*'OR-GREET4.0'!C$97/'OR-GREET4.0'!F$101) -> 0
B23: EtOH Yield (gal of EtOH / metric tonne cane) | F23: =IF('Site-Specific Inputs'!R$33=0%,0,F22/'OR-GREET4.0'!F$101) -> 0 | G23: =IF('Site-Specific Inputs'!R$33=100%,0,G22/'OR-GREET4.0'!F$101) -> 0
F24: Molasses-Ethanol | G24: Cane Juice-Ethanol
B25: 5.8 Modeled ethanol production (dry gal) | E25: =SUM(F25:G25) -> 0 | F25: =F23*'Site-Specific Inputs'!$R$33*'Site-Specific Inputs'!$J$33 -> 0 | G25: =G23*(1-'Site-Specific Inputs'!$R$33)*'Site-Specific Inputs'!$J$33 -> 0
B26: 5.9 Adjusted reported ethanol production (dry gal) | E26: =((SUMPRODUCT('Site-Specific Inputs'!V9:V32,(1-'Site-Specific Inputs'!U9:U32))+SUMPRODUCT('Site-Specific Inputs'!Y9:Y32,(1-'Site-Specific Inputs'!X9:X32)))*'OR-GREET4.0'!C102) -> 0
B27: 5.10 Difference between modeled and adjusted reported ethanol production numbers | E27: =E26-(F25+G25) -> 0
B28: 5.11 Modeled finished sugar production (metric tonnes) | E28: =F20*'Site-Specific Inputs'!$R$33*'Site-Specific Inputs'!$J$33 -> 0
B29: 5.12 Reported finished sugar production (metric tonnes) | E29: ='Site-Specific Inputs'!$Z$33 -> 0 | F29: =ABS(E30) -> 0
B30: 5.13 Difference between modeled and reported Finished Sugar Production: | E30: ='Site-Specific Inputs'!$Z$33-$E$28 -> 0 | F30: 5.14 Mass Allocation Ratio: | G30: =IFERROR(IF('Site-Specific Inputs'!R$33=0%,0,G13/G11),"0.0") -> 0
B32: Section 6: Verify Fuel and Co-Product Production Information
B33: 6.1 Ethanol Produced from Cane Juice, dry gal | C33: =G$25 -> 0 | D33: 6.3 Ethanol Produced from Molasses, dry gal | E33: =F$25 -> 0 | F33: 6.5 Total Ethanol Produced, dry gal | G33: =F25+G25 -> 0 | H33: 6.7 Net Surplus Cogenerated Electricity Exported (kWh) | I33: =('Site-Specific Inputs'!Q33-'Site-Specific Inputs'!P33) -> 0 | J33: 6.9 Electricity Co-Product Credit (kWh/gal) (Molasses Feedstock) | K33: =IFERROR('EF Tables'!G$73,0) -> 0 | L33: 6.11 Composite Electricity Co-Product Credit (kWh/gal)
B34: 6.2 Juice-to-Ethanol Yield (gal/tonne cane) | C34: =$G$23 -> 0 | D34: 6.4 Molasses-to-Ethanol Yield (gal/tonne cane) | E34: =$F$23 -> 0 | F34: 6.6 Total Finished Sugar Produced, metric tons | G34: ='Site-Specific Inputs'!Z33 -> 0 | H34: 6.8 Net Electricity Credited to Pathway (kWh) | I34: =IFERROR(I$33-'Site-Specific Inputs'!O$33,"0") -> 0 | J34: 6.10 Electricity Co-Product Credit (kWh/gal) (Cane Juice Feedstock) | K34: =IFERROR('EF Tables'!G$74,0) -> 0 | L34: =IFERROR(IF(I34>0,'EF Tables'!G$75,0),"0.0") -> 0
B36: Select Regional Electricity Mix
B37: 1-U.S Ave Mix
B38: 2-User Defined Mix
B39: 3-CAMX Mix
B40: 4-NWPP Mix
B41: 5-AZNM Mix
B42: 6-RMPA Mix
B43: 7-MROW Mix
B44: 8-SPNO Mix
B45: 9-SPSO Mix
B46: 10-ERCT Mix
B47: 11-MROE Mix
B48: 12-SRMW Mix | F48: 0
B49: 13-SRMV Mix
B50: 14-RFCM Mix
B51: 15-RFCW Mix
B52: 16-SRTV Mix
B53: 17-SRSO Mix
B54: 18-NEWE Mix
B55: 19-NYUP Mix
B56: 20-RFCE Mix
B57: 21-NYLI Mix
B58: 22-NYCW Mix
B59: 23-SRVC Mix
B60: 24-FRCC Mix
B61: 25-AKMS Mix
B62: 26-AKGD Mix
B63: 27-HIOA Mix
B64: 28-HIMS Mix | O64: TOTAL CI (gCO2e/MJ)
B65: 29-Brazilian Mix
B66: 30-Canadian Mix
B67: Section 7: Emissions Factor (EF)-based Aggregated CI Impact Determination for Sugarcane Juice Feedstock
C68: Sugarcane Agriculture & Farming Impacts (gCO2e/m.t. cane) | D68: Cane & Filtercake Transport (gCO2e/tonne-mile) | E68: Straw Burning Emissions (gCO2e/m.t. cane) | F68: Sugar Production Emissions (gCO2e/m.t. cane) | G68: Net Surplus Cogenerated Electricity Credit (gCO2e/kWh) | H68: Ethanol Production Emissions (gCO2e/gal) | I68: Anhydrous Ethanol Truck Transport in Brazil Emissions (gCO2e/gal-mile) | J68: Anhydrous Ethanol Pipeline Transport in Brazil Emissions (gCO2e/gal-mile) | K68: Anhydrous Ethanol Ocean Transport Emissions (gCO2e/gal-mile) | L68: Ethanol Truck Transport in Oregon Emissions (gCO2e/gal-mile) | M68: Denaturant Emissions (gCO2e/gal) | N68: ILUC (gCO2e/gal) | O68: TOTAL CI (gCO2e/MJ)
B69: Emissions Factor (EF) | C69: =IFERROR('EF General'!O22,"0.0") -> 0 | D69: =IFERROR('EF Tables'!H$14/SUM('EF Tables'!#REF!+'EF Tables'!D$8),"0.0") -> 0.0 | E69: ='EF General'!$D$37 -> 17336.277 | F69: NA | G69: ='EF Tables'!H$85 -> 0 | H69: =IFERROR('EF General'!I$92,"0.0") -> 0 | I69: ='EF General'!$K$170 -> 0.4047848132 | J69: ='EF General'!$D$170 -> 0.05192476101 | K69: ='EF General'!H$170 -> 0.08711453183 | L69: ='EF General'!$L$170 -> 0.4048636039 | M69: =IFERROR('EF General'!I$116,"0.0") -> 0 | N69: =IFERROR('EF General'!H$126,"0.0") -> 950.2862116
B70: Total Cane Procured (m.t.): | C70: =IF('Site-Specific Inputs'!$J$33>0,'Site-Specific Inputs'!$J$33,"-") -> - | D70: ='Site-Specific Inputs'!$J$33 -> 0 | E70: ='Site-Specific Inputs'!$J$33 -> 0 | F70: 0 | G70: =CONCATENATE(('Site-Specific Inputs'!Q$33-'Site-Specific Inputs'!P$33-'Site-Specific Inputs'!O$33)," kWh") -> 0 kWh | H70: ='Site-Specific Inputs'!$J$33 -> 0 | I70: =CONCATENATE(('Site-Specific Inputs'!$C$30/1.609)," total truck miles") -> 0 total truck miles | J70: =CONCATENATE(('Site-Specific Inputs'!$C$31/1.609)," total truck miles") -> 0 total truck miles | K70: =CONCATENATE('Site-Specific Inputs'!C$33/1.609," ocean miles") -> 0 ocean miles | L70: =CONCATENATE('Site-Specific Inputs'!C$34+'Site-Specific Inputs'!C$35," miles") -> 90 miles | M70: ='Site-Specific Inputs'!$J$33 -> 0 | N70: ='Site-Specific Inputs'!$J$33 -> 0 | O70: =IFERROR(N74+M74+E121+H74+D121+I74+G74+F74+E74+D74+C74,"-") -> -
B71: Total Ethanol Produced (dry gal): | C71: =IF('Site-Specific Inputs'!$AA$33>0,'Site-Specific Inputs'!$AA$33*264.1596,"-") -> - | D71: ='Site-Specific Inputs'!$AA$33*264.1596 -> 0 | E71: ='Site-Specific Inputs'!$AA$33*264.1596 -> 0 | F71: 0 | G71: ='Site-Specific Inputs'!$AA$33*264.1596 -> 0 | H71: ='Site-Specific Inputs'!$AA$33*264.1596 -> 0 | I71: ='Site-Specific Inputs'!$V$33*(1-'Site-Specific Inputs'!$U$33)*264.1596 -> 0 | J71: ='Site-Specific Inputs'!$V$33*(1-'Site-Specific Inputs'!$U$33)*264.1596 -> 0 | K71: ='Site-Specific Inputs'!$V$33*(1-'Site-Specific Inputs'!$U$33)*264.1596 -> 0 | L71: ='Site-Specific Inputs'!$V$33*(1-'Site-Specific Inputs'!$U$33)*264.1596/0.975 -> 0 | M71: ='Site-Specific Inputs'!$V$33*(1-'Site-Specific Inputs'!$U$33)*264.1596 -> 0 | N71: ='Site-Specific Inputs'!$AA$33*264.1596 -> 0 | O71: =IFERROR(N75+M75+H75+D124+E124+I75+G75+F75+E75+D75+C75,"-") -> -
B72: Total Emissions (gCO2e) | C72: =IF('Site-Specific Inputs'!J$33>0,C69*'Site-Specific Inputs'!$J$33,"-") -> - | D72: =D69*(('Site-Specific Inputs'!$K$33)/1.609)*('Site-Specific Inputs'!J$33) -> 0 | E72: =E69*'Site-Specific Inputs'!$J$33 -> 0 | F72: 0 | G72: =-G69*('Site-Specific Inputs'!Q$33-'Site-Specific Inputs'!P$33-'Site-Specific Inputs'!O$33) -> 0 | H72: =H69*'Site-Specific Inputs'!$AA$33*264.1596 -> 0 | I72: =I69*(('Site-Specific Inputs'!C$30/1.609))*I71*264.1596 -> 0 | J72: =J69*(('Site-Specific Inputs'!C$31/1.609))*J71*264.1596 -> 0 | K72: =K69*(K71)*(('Site-Specific Inputs'!C$33/1.609)) -> 0 | L72: =L69*('Site-Specific Inputs'!$C$34+'Site-Specific Inputs'!$C$35)*L71 -> 0 | M72: =M69*M71 -> 0 | N72: =N69*('Site-Specific Inputs'!$AA$33*264.1596) -> 0
B73: Emissions (Sugarcane for Sugar) (gCO2e) | C73: =IFERROR((C74/$G$30)-C74,"-") -> - | D73: =IFERROR((D$74/$G$30)-D$74,"-") -> - | E73: =E72-E75-E74 -> 0 | F73: 0 | G73: =G72-G75-G74 -> 0 | H73: =IFERROR(H72-H75-H74,"-") -> - | I73: =IFERROR(I72-I75-I74,"-") -> - | J73: =IFERROR(J72-J75-J74,"-") -> - | K73: =IFERROR(K72-K75-K74,"-") -> - | L73: =IFERROR(L72-L75-L74,"-") -> - | M73: 0 | N73: =IFERROR(N72-N75-N74,"-") -> -
B74: Emissions (Sugarcane for Molasses) (gCO2e) | C74: =IFERROR((C72-C75)*G$30,"-") -> - | D74: =(D72-D75)*G$30 -> 0 | E74: =(E72-E75)*G30 -> 0 | F74: 0 | G74: =(G72-G75)*G$30 -> 0 | H74: =IFERROR(H72-H75,"-") -> - | I74: =IFERROR(I72-I75,"-") -> - | J74: =IFERROR(J72-J75,"-") -> - | K74: =IFERROR(K72-K75,"-") -> - | L74: =IFERROR(L72-L75,"-") -> - | M74: ='EF Tables'!C$124*'Calculated Parameters'!F$25*76330*1055.06/10^6 -> 0 | N74: =IFERROR(N72-N75,"-") -> -
B75: Emissions (Sugarcane for Juice) (gCO2e) | C75: =IFERROR(C72*(1-'Site-Specific Inputs'!$R$33),"-") -> - | D75: =D72*(1-'Site-Specific Inputs'!R$33) -> 0 | E75: =E72*(1-'Site-Specific Inputs'!$R$33) -> 0 | F75: 0 | G75: =G72*(1-'Site-Specific Inputs'!R$33) -> 0 | H75: =IFERROR(H72*$G$25/($F$25+$G$25),"-") -> - | I75: =IFERROR(I72*$G$25/($F$25+$G$25),"-") -> - | J75: =IFERROR(J72*$G$25/($F$25+$G$25),"-") -> - | K75: =IFERROR(K72*$G$25/($F$25+$G$25),"-") -> - | L75: =IFERROR(L72*$G$25/($F$25+$G$25),"-") -> - | M75: ='EF Tables'!D$124*'Calculated Parameters'!G$25*76330*1055.06/10^6 -> 0 | N75: =IFERROR(N72*$G$25/($F$25+$G$25),"-") -> -
B76: CI Calc Using EF (gCO2e/MJ) | C76: =IF('Site-Specific Inputs'!R$33=100%,"-",IFERROR((C69*C70*((1-'Site-Specific Inputs'!R$33)+'Site-Specific Inputs'!$R$33*$G$30)/($C71*76330*1055.06/10^6)),"-")) -> - | D76: =IF('Site-Specific Inputs'!R$33=100%,0,IFERROR(SUM(D$74:D$75)/((F$25+G$25)*76330*1055.06/10^6),0)) -> 0 | E76: =IF('Site-Specific Inputs'!R$33=100%,0,IFERROR((1-'Site-Specific Inputs'!$C$36)*E69*'Site-Specific Inputs'!J$33*((1-'Site-Specific Inputs'!$R$33)+'Site-Specific Inputs'!$R$33*$G$30)/($E71*76330*1055.06/10^6),0)) -> 0 | F76: 0 | G76: =IF('Site-Specific Inputs'!R$33=100%,0,-G69*L$34/(76330*1055.06/10^6)) -> 0 | H76: =IF('Site-Specific Inputs'!AA33=0,0,IF('Site-Specific Inputs'!R$33=100%,0,H69/(76330*1055.06/10^6))) -> 0 | I76: =IF('Site-Specific Inputs'!AA33=0,0,IF('Site-Specific Inputs'!R$33=100%,0,I69*(('Site-Specific Inputs'!C$30/1.609))*10^6/(76330*1055.06))) -> 0 | J76: =IF('Site-Specific Inputs'!AA$33=0%,0,J69*(('Site-Specific Inputs'!C$31/1.609))*10^6/(76330*1055.06)) -> 0 | K76: =IF('Site-Specific Inputs'!AA33=0,0,IF('Site-Specific Inputs'!R$33=100%,0,K69*(('Site-Specific Inputs'!C$33/1.609)*10^6/(76330*1055.06)))) -> 0 | L76: =IF('Site-Specific Inputs'!AA33=0,0,IF('Site-Specific Inputs'!R$33=100%,0,L69*('Site-Specific Inputs'!$C$34+'Site-Specific Inputs'!$C$35)*10^6/(76330*1055.06))) -> 0 | M76: =IF('Site-Specific Inputs'!R$33=100%,0,M69/(76330*1055.06/10^6)) -> 0 | N76: =IF('Site-Specific Inputs'!AA33=0,0,IF('Site-Specific Inputs'!R$33=100%,0,N69/(76330*1055.06/10^6))) -> 0 | O76: =IF('Site-Specific Inputs'!R$33=100%,0,IFERROR(N76+M76+L76+K76+I76+H76+G76+F76+E76+D76+C76,"0.00")) -> 0.00
I77: Checked | J77: Checked | K77: Checked | L77: Checked
B78: Section 8: Emissions Factor (EF)-based Aggregated CI Impact Determination for Sugarcane Molasses Feedstock
C79: Sugarcane Agriculture & Farming Impacts (gCO2e/m.t. cane) | D79: Cane & Filtercake Transport (gCO2e/tonne-mile) | E79: Straw Burning Emissions (gCO2e/m.t. cane) | F79: Sugar Production Emissions (gCO2e/m.t. cane) | G79: Net Surplus Cogenerated Electricity Credit (gCO2e/kWh) | H79: Ethanol Production Emissions (gCO2e/gal) | I79: Anhydrous Ethanol Truck Transport in Brazil Emissions (gCO2e/gal-mile) | J79: Anhydrous Ethanol Pipeline Transport in Brazil Emissions (gCO2e/gal-mile) | K79: Anhydrous Ethanol Ocean Transport Emissions (gCO2e/gal-mile) | L79: Ethanol Truck Transport in Oregon Emissions (gCO2e/gal-mile) | M79: Denaturant Emissions (gCO2e/gal) | N79: ILUC (gCO2e/gal) | O79: TOTAL CI (gCO2e/MJ)
B80: Emissions Factor (EF) | C80: =IFERROR('EF General'!J31,"-") -> 0 | D80: =IFERROR('EF Tables'!H$14/SUM('EF Tables'!#REF!+'EF Tables'!D$8),"0.0") -> 0.0 | E80: ='EF General'!$D$37 -> 17336.277 | F80: =3700/(2000*0.4536/1000) -> 4078.483245 | G80: ='EF Tables'!G$85 -> 0 | H80: =IFERROR('EF General'!I$92,"0.0") -> 0 | I80: ='EF General'!$K$170 -> 0.4047848132 | J80: ='EF General'!$D$170 -> 0.05192476101 | K80: ='EF General'!H$170 -> 0.08711453183 | L80: ='EF General'!$L$170 -> 0.4048636039 | M80: =IFERROR('EF General'!I$115,"0.0") -> 0 | N80: =IFERROR('EF General'!H$126,"0.0") -> 950.2862116
B81: Total Cane Procured (m.t.): | C81: =IF('Site-Specific Inputs'!$J$33>0,'Site-Specific Inputs'!$J$33,"-") -> - | D81: ='Site-Specific Inputs'!$J$33 -> 0 | E81: ='Site-Specific Inputs'!$J$33 -> 0 | F81: ='Site-Specific Inputs'!$J$33 -> 0 | G81: =CONCATENATE(('Site-Specific Inputs'!Q$33-'Site-Specific Inputs'!P$33-'Site-Specific Inputs'!O$33)," kWh") -> 0 kWh | H81: ='Site-Specific Inputs'!$J$33 -> 0 | I81: =CONCATENATE(('Site-Specific Inputs'!$C$30/1.609)," total truck miles") -> 0 total truck miles | J81: =CONCATENATE(('Site-Specific Inputs'!$C$31/1.609)," total truck miles") -> 0 total truck miles | K81: =CONCATENATE('Site-Specific Inputs'!C$33/1.609," ocean miles") -> 0 ocean miles | L81: =CONCATENATE('Site-Specific Inputs'!C$34+'Site-Specific Inputs'!C$35," miles") -> 90 miles | M81: ='Site-Specific Inputs'!$J$33 -> 0 | N81: ='Site-Specific Inputs'!$J$33 -> 0
B82: Total Ethanol Produced (dry gal): | C82: =IF('Site-Specific Inputs'!$AA$33>0,'Site-Specific Inputs'!$AA$33*264.1596,"-") -> - | D82: ='Site-Specific Inputs'!$AA$33*264.1596 -> 0 | E82: ='Site-Specific Inputs'!$AA$33*264.1596 -> 0 | F82: ='Site-Specific Inputs'!$AA$33*264.1596 -> 0 | G82: ='Site-Specific Inputs'!$AA$33*264.1596 -> 0 | H82: ='Site-Specific Inputs'!$AA$33*264.1596 -> 0 | I82: ='Site-Specific Inputs'!$V$33*(1-'Site-Specific Inputs'!$U$33)*264.1596 -> 0 | J82: ='Site-Specific Inputs'!$V$33*(1-'Site-Specific Inputs'!$U$33)*264.1596 -> 0 | K82: ='Site-Specific Inputs'!$V$33*(1-'Site-Specific Inputs'!$U$33)*264.1596 -> 0 | L82: ='Site-Specific Inputs'!$V$33*(1-'Site-Specific Inputs'!$U$33)*264.1596/0.975 -> 0 | M82: ='Site-Specific Inputs'!$V$33*(1-'Site-Specific Inputs'!$U$33)*264.1596 -> 0 | N82: ='Site-Specific Inputs'!$AA$33*264.1596 -> 0
B83: Total Emissions (gCO2e) | C83: =IF('Site-Specific Inputs'!J$33>0,C80*'Site-Specific Inputs'!$J$33,"-") -> - | D83: =D80*(('Site-Specific Inputs'!$K$33)/1.609)*('Site-Specific Inputs'!J$33) -> 0 | E83: =E80*'Site-Specific Inputs'!$J$33 -> 0 | F83: =F80*'Site-Specific Inputs'!$J$33*'Site-Specific Inputs'!R$33 -> 0 | G83: =-G80*('Site-Specific Inputs'!Q$33-'Site-Specific Inputs'!P$33-'Site-Specific Inputs'!O$33) -> 0 | H83: =H80*'Site-Specific Inputs'!$AA$33*264.1596 -> 0 | I83: =I80*(('Site-Specific Inputs'!C$30/1.609))*I82*264.1596 -> 0 | J83: =J80*(('Site-Specific Inputs'!C$31/1.609))*J82*264.1596 -> 0 | K83: =K80*(K82)*(('Site-Specific Inputs'!C$33/1.609)) -> 0 | L83: =L80*('Site-Specific Inputs'!$C$34+'Site-Specific Inputs'!$C$35)*L82 -> 0 | M83: =M80*M82 -> 0 | N83: =N80*('Site-Specific Inputs'!$AA$33*264.1596) -> 0
B84: Emissions (Sugarcane for Sugar) (gCO2e) | C84: =IFERROR((C85/$G$30)-C85,"-") -> - | D84: =IFERROR((D$74/$G$30)-D$74,"-") -> - | E84: =E83-E86-E85 -> 0 | F84: =F$80*'Site-Specific Inputs'!J$33*'Site-Specific Inputs'!R$33 -> 0 | G84: =G83-G86-G85 -> 0 | H84: =IFERROR(H83-H86-H85,"-") -> - | I84: =IFERROR(I83-I86-I85,"-") -> - | J84: =IFERROR(J83-J86-J85,"-") -> - | K84: =IFERROR(K83-K86-K85,"-") -> - | L84: =IFERROR(L83-L86-L85,"-") -> - | M84: 0 | N84: =IFERROR(N83-N86-N85,"-") -> -
B85: Emissions (Sugarcane for Molasses) (gCO2e) | C85: =IFERROR((C83-C86)*G$30,"-") -> - | D85: =(D83-D86)*G$30 -> 0 | E85: =(E83-E86)*G30 -> 0 | F85: =F80*'Site-Specific Inputs'!$J$33*G$30*'Site-Specific Inputs'!R$33 -> 0 | G85: =(G83-G86)*G$30 -> 0 | H85: =IFERROR(H83-H86,"-") -> - | I85: =IFERROR(I83-I86,"-") -> - | J85: =IFERROR(J83-J86,"-") -> - | K85: =IFERROR(K83-K86,"-") -> - | L85: =IFERROR(L83-L86,"-") -> - | M85: ='EF Tables'!C$124*'Calculated Parameters'!F$25*76330*1055.06/10^6 -> 0 | N85: =IFERROR(N83-N86,"-") -> -
B86: Emissions (Sugarcane for Juice) (gCO2e) | C86: =IFERROR(C83*(1-'Site-Specific Inputs'!$R$33),0) -> 0 | D86: =D83*(1-'Site-Specific Inputs'!R$33) -> 0 | E86: =E83*(1-'Site-Specific Inputs'!$R$33) -> 0 | F86: 0 | G86: =G83*(1-'Site-Specific Inputs'!R$33) -> 0 | H86: =IFERROR(H83*$G$25/($F$25+$G$25),"-") -> - | I86: =IFERROR(I83*$G$25/($F$25+$G$25),"-") -> - | J86: =IFERROR(J83*$G$25/($F$25+$G$25),"-") -> - | K86: =IFERROR(K83*$G$25/($F$25+$G$25),"-") -> - | L86: =IFERROR(L83*$G$25/($F$25+$G$25),"-") -> - | M86: ='EF Tables'!D$124*'Calculated Parameters'!G$25*76330*1055.06/10^6 -> 0 | N86: =IFERROR(N83*$G$25/($F$25+$G$25),"-") -> -
B87: CI Calc Using EF (gCO2e/MJ) | C87: =IF('Site-Specific Inputs'!R$33=0%,"-",IFERROR(C80*C81*((1-'Site-Specific Inputs'!R$33)+'Site-Specific Inputs'!$R$33*$G$30)/($C82*76330*1055.06/10^6),0)) -> - | D87: =IF('Site-Specific Inputs'!R$33=0%,0,IFERROR(SUM(D$74:D$75)/((F$25+G$25)*76330*1055.06/10^6),"0.0")) -> 0 | E87: =IF('Site-Specific Inputs'!R$33=0%,0,IFERROR((1-'Site-Specific Inputs'!$C$36)*E80*'Site-Specific Inputs'!J$33*((1-'Site-Specific Inputs'!$R$33)+'Site-Specific Inputs'!$R$33*$G$30)/($E82*76330*1055.06/10^6),"0.0")) -> 0 | F87: =IF('Site-Specific Inputs'!R$33=0%,0,IFERROR(F80*'Site-Specific Inputs'!J$33*'Site-Specific Inputs'!$R$33*$G$30/($F$25*76330*1055.06/10^6),0)) -> 0 | G87: =IF('Site-Specific Inputs'!R$33=0%,0,-G80*L$34/(76330*1055.06/10^6)) -> 0 | H87: =IF('Site-Specific Inputs'!R$33=0%,0,H80/(76330*1055.06/10^6)) -> 0 | I87: =IF('Site-Specific Inputs'!R$33=0%,0,I80*(('Site-Specific Inputs'!C$30/1.609))*10^6/(76330*1055.06)) -> 0 | J87: =IF('Site-Specific Inputs'!R$33=0%,0,J80*(('Site-Specific Inputs'!C$31/1.609))*10^6/(76330*1055.06)) -> 0 | K87: =IF('Site-Specific Inputs'!R$33=0%,0,K80*(('Site-Specific Inputs'!C$33/1.609)*10^6/(76330*1055.06))) -> 0 | L87: =IF('Site-Specific Inputs'!R$33=0%,0,L80*('Site-Specific Inputs'!$C$34+'Site-Specific Inputs'!$C$35)*10^6/(76330*1055.06)) -> 0 | M87: =IF('Site-Specific Inputs'!R$33=0%,0,M80/(76330*1055.06/10^6)) -> 0 | N87: =IF('Site-Specific Inputs'!R$33=0%,0,N80/(76330*1055.06/10^6)) -> 0 | O87: =IF('Site-Specific Inputs'!R$33=0%,"0.00",IF('Site-Specific Inputs'!R33=0,0,N87+M87+L87+K87+I87+H87+G87+F87+E87+D87+C87)) -> 0.00
E88: 0 | I88: Checked | J88: Checked | K88: Checked | L88: Checked
B89: Section 9.a: CI Calculations for Sugarcane Juice-based Ethanol | H89: Section 9.b: CI Calculations for Sugarcane Molasses-based Ethanol
B90: Sugarcane Juice-based Ethanol | F90: Juice-to-Fuel Share | G90: =1-M90 -> 1 | H90: Sugarcane Molasses-based Ethanol | L90: Juice-to-Sugar Share | M90: ='Site-Specific Inputs'!R33 -> 0
B91: eGRID (Electricity Mix) region | D91: ='Site-Specific Inputs'!#REF! ->  | E91: Value | F91: Total Emissions (gCO2e) | G91: CI, gCO2e/MJ | H91: eGRID (Electricity Mix) region | J91: ='Site-Specific Inputs'!#REF! ->  | K91: Value | L91: Total Emissions (gCO2e) | M91: CI, gCO2e/MJ
B92: Feedstock Production | C92: Sugarcane Farming | H92: Feedstock Production | I92: Sugarcane Farming
C93: Farming Energy, Btu/metric tonne cane | E93: 95000 | F93: =CONCATENATE('EF Tables'!$U$38," per m.t. cane") -> 8306.89666302434 per m.t. cane | G93: =IFERROR(IF('Site-Specific Inputs'!$R$33=100%,0,'EF Tables'!U$40),"0.0") -> - | I93: Farming Energy, Btu/metric tonne cane | K93: 95000 | L93: =CONCATENATE('EF Tables'!$U$38," per m.t. cane") -> 8306.89666302434 per m.t. cane | M93: =IFERROR(IF('Site-Specific Inputs'!R$33=0%,0,'EF Tables'!U$39),"0.0") -> 0
C94: Fertilizers and Ag Chemicals | F94: =CONCATENATE('EF Tables'!$V$38," per m.t.cane") -> 8163.02660731458 per m.t.cane | G94: =IFERROR(IF('Site-Specific Inputs'!$R$33=100%,0,'EF Tables'!R$35),"0.0") -> 0 | I94: Fertilizers and Agricultural Chemicals | L94: =CONCATENATE('EF Tables'!$V$38," per m.t.cane") -> 8163.02660731458 per m.t.cane | M94: =IFERROR(IF('Site-Specific Inputs'!R$33=0%,0,'EF Tables'!Q$35),"0.0") -> 0
C95: N2O in Soil | F95: =CONCATENATE('EF Tables'!$W$38," per m.t.cane") -> 14385.152317146 per m.t.cane | G95: =IFERROR(IF('Site-Specific Inputs'!$R$33=100%,0,'EF Tables'!W$40),"0.0") -> - | I95: N2O in Soil | L95: =CONCATENATE('EF Tables'!$W$38," per m.t.cane") -> 14385.152317146 per m.t.cane | M95: =IFERROR(IF('Site-Specific Inputs'!R$33=0%,0,'EF Tables'!W$39),0) -> 0
C96: N content above and below ground, g N2/tonne cane | E96: 1036 | I96: N content above and below ground, g N2/tonne cane | K96: 1036
C97: Sugarcane Straw Burning in Field | G97: =IFERROR(IF('Site-Specific Inputs'!$R$33=100%,0,'EF Tables'!J$43),"0.0") -> 0 | I97: Sugarcane Straw Burning in Field | M97: =IFERROR(IF('Site-Specific Inputs'!R$33=0%,0,'EF Tables'!J$42),"0.0") -> 0
C98: Sugarcane Transport to Mill | I98: Sugarcane Transport to Mill
D99: Cane transport by MDT, miles | E99: ='EF Tables'!D8 -> 2 | G99: =IFERROR(IF('Site-Specific Inputs'!$R$33=100%,0,'EF Tables'!H$16),"0.0") -> 0 | J99: Cane transport by MDT, miles | K99: ='EF Tables'!D8 -> 2 | M99: =IFERROR(IF('Site-Specific Inputs'!R$33=0%,0,'EF Tables'!H$15),"0.0") -> 0
D100: Cane transport by HDDT, miles | E100: =IFERROR('EF Tables'!#REF!,"0.0") -> 0.0 | J100: Cane transport by HDDT, miles | K100: =IFERROR('EF Tables'!#REF!,"0.0") -> 0.0
C101: Filtercake Transport to Cane Farm | I101: Filtercake Transport to Cane Farm
D102: Filtercake transport by HDDT, miles | E102: =IFERROR(SUM(E99:E100),"0.0") -> 2 | G102: =IFERROR(IF('Site-Specific Inputs'!$R$33=100%,0,'EF Tables'!E$28),"0.0") -> 0 | J102: Filtercake transport by HDDT, miles | K102: =IFERROR(SUM(K99:K100),"0.0") -> 2 | M102: =IFERROR(IF('Site-Specific Inputs'!R$33=0%,0,'EF Tables'!E$27),"0.0") -> 0
C103: Co-product and Other Credits | I103: Co-product and Other Credits
D104: Net Surplus Cogenerated Electricity Export, kWh/gal | E104: =K34 -> 0 | G104: =IFERROR(IF('Site-Specific Inputs'!$R$33=100%,0,'EF Tables'!R$71),"0.0") -> 0 | J104: Net Surplus Cogenerated Electricity Export, kWh/gal | K104: =K33 -> 0 | M104: =IFERROR(IF('Site-Specific Inputs'!R$33=0%,0,'EF Tables'!Q$71),"0.0") -> 0
D105: Mechanized Harvesting (%) | E105: ='Site-Specific Inputs'!C36 -> 0.65 | G105: =IFERROR(IF('Site-Specific Inputs'!$R$33=100%,0,-'EF Tables'!J43*'Site-Specific Inputs'!C36),0) -> 0 | J105: Mechanized Harvesting (%) | K105: ='Site-Specific Inputs'!C36 -> 0.65 | M105: =IFERROR(IF('Site-Specific Inputs'!S$32=0%,0,-'EF Tables'!J42*'Calculated Parameters'!K105),"0.0") -> 0
B106: Fuel Production | C106: Sugar Production (gCO2e/wet tonne cane) | E106: ='EF Tables'!C45 -> 4078.483245 | G106: =0 -> 0 | H106: Fuel Production | I106: Sugar Production (gCO2e/wet tonne cane) | K106: ='EF Tables'!C45 -> 4078.483245 | M106: =IFERROR(IF('Site-Specific Inputs'!R$33=0%,0,'EF Tables'!Q44),0) -> 0
C107: Ethanol Production | I107: Ethanol Production
C108: Total feedstock used, metric tonnes cane | E108: =('Site-Specific Inputs'!$J$33*(1-'Site-Specific Inputs'!R33))/2 -> 0 | I108: Total feedstock used, metric tonnes cane | K108: ='Site-Specific Inputs'!$J$33*'Site-Specific Inputs'!R33/2 -> 0
C109: Total undenatured ethanol, gallons | E109: =G25 -> 0 | I109: Total undenatured ethanol, gallons | K109: =F25 -> 0
C110: Ethanol Yield, gal ethanol / tonne cane | E110: =C34 -> 0 | I110: Ethanol Yield, gal ethanol / tonne cane | K110: =E34 -> 0
C111: Biomass (HHV), tons (See Non-Biogenic Emissions Below) | I111: Biomass (HHV), tons (See Non-Biogenic Emissions Below)
D112: Average Moisture, % | J112: Average Moisture, %
C113: Electricity, kWh/gal ethanol | E113: 0.007142 | I113: Electricity, kWh/gal ethanol | K113: 0.007142
C114: Non-biogenic (CH4/N2O) in Bagasse Combustion | G114: =IFERROR(IF('Site-Specific Inputs'!$R$33=100%,0,'EF Tables'!R60),"0.0") -> 0 | I114: Non-biogenic (CH4/N2O) in Bagasse Combustion | M114: =IF('Site-Specific Inputs'!R$33=0%,0,'EF Tables'!Q60) -> 0
C115: Total Plant Energy Consumption, Btu/gal | E115: =E116+E113*3412.96 -> 324.3753603 | I115: Total Plant Energy Consumption, Btu/gal | K115: =K116+K113*3412.96 -> 324.3753603
C116: Residual Oil (10% Lubricant Burned), Btu/gal EtOH | E116: 300 | G116: =IF('Site-Specific Inputs'!AA33=0,0,IF('Site-Specific Inputs'!$R$33=100%,0,'EF Tables'!R$54)) -> 0 | I116: Residual Oil (10% Lubricant Burned), Btu/gal EtOH | K116: 300 | M116: =IF('Site-Specific Inputs'!R$33=0%,0,'EF Tables'!Q54) -> 0
D117: Chemicals Usage (Lime, g/tonne cane) | E117: 880 | G117: =IF('Site-Specific Inputs'!AA33=0,0,IF('Site-Specific Inputs'!$R$33=100%,0,'EF Tables'!R$55)) -> 0 | J117: Chemicals Usage (Lime, g/tonne cane) | K117: 880 | M117: =IFERROR(IF('Site-Specific Inputs'!R$33=0%,0,'EF Tables'!Q55),"0.0") -> 0
D118: Chemicals Usage (Yeast, g/gal ethanol) (11) | E118: =D167 -> 3.343276892 | G118: =IF('Site-Specific Inputs'!AA33=0,0,IF('Site-Specific Inputs'!$R$33=100%,0,'EF Tables'!R$56)) -> 0 | J118: Chemicals Usage (Yeast, g/gal ethanol) (11) | K118: =D167 -> 3.343276892 | M118: =IFERROR(IF('Site-Specific Inputs'!R$33=0%,0,'EF Tables'!Q56),"0.0") -> 0
C119: Ethanol Transport and Distribution | G119: =IF('Site-Specific Inputs'!AA33=0,0,IF('Site-Specific Inputs'!$R$33<100%,SUM('EF Tables'!P91:P95),0)) -> 0 | I119: Ethanol Transport and Distribution | M119: =IF('Site-Specific Inputs'!R$33=0%,0,SUM('EF Tables'!O91:O95)) -> 0
D120: From Ethanol Plant to Brazil Port | E120: Mode: HDD Truck | F120: =CONCATENATE('Pathway Summary'!$F$9," dry gals") -> dry gals | J120: From Ethanol Plant to Brazil Port | K120: Mode: HDD Truck | L120: =CONCATENATE('Pathway Summary'!$F$9," dry gals") -> dry gals
D121: Miles | E121: ='Site-Specific Inputs'!$C$30/1.609 -> 0 | J121: Miles | K121: ='Site-Specific Inputs'!$C$30/1.609 -> 0
D122: From Ethanol Plant to Brazil Port or Terminal: | E122: Mode: Pipeline | F122: =CONCATENATE('Pathway Summary'!$F$9," dry gals") -> dry gals | J122: From Ethanol Plant to Brazil Port or Terminal: | K122: Mode: Pipeline | L122: =CONCATENATE('Pathway Summary'!$F$9," dry gals") -> dry gals
D123: Miles | E123: ='Site-Specific Inputs'!$C$31/1.609 -> 0 | J123: Miles | K123: ='Site-Specific Inputs'!$C$31/1.609 -> 0
D124: From Brazil Port to Oregon Port | E124: Mode: Ocean tanker | F124: 1 | J124: From Brazil Port to Oregon Port | K124: Mode: Ocean Tanker | L124: 1
D125: Miles | E125: ='Site-Specific Inputs'!$C$33/1.609 -> 0 | J125: Miles | K125: ='Site-Specific Inputs'!$C$33/1.609 -> 0
D126: From Oregon Port to Blending Terminal | E126: Mode: HDD Truck | F126: 1 | J126: From Oregon Port to Blending Terminal | K126: Mode: HDD Truck | L126: 1
D127: Miles | E127: 40 | J127: Miles | K127: 40
D128: Oregon Blending Terminal to Refueling Station | E128: Mode: HDD Truck | F128: 1 | J128: Oregon Blending Terminal to Refueling Station | K128: Mode: HDD Truck | L128: 1
D129: Miles | E129: 50 | J129: Miles | K129: 50
C130: Denaturant, g/MJ | G130: =IF('Site-Specific Inputs'!AA33=0,0,IF('Site-Specific Inputs'!$R$33=100%,0,'EF Tables'!D124)) -> 0 | I130: Denaturant, g/MJ | M130: =IF('Site-Specific Inputs'!AA33=0,0,IF('Site-Specific Inputs'!R$33=0%,0,'EF Tables'!C124)) -> 0
C131: Indirect Land Use, g/MJ | G131: =IF('Site-Specific Inputs'!AA33=0,0,IF('Site-Specific Inputs'!$R$33=100%,0,11.8)) -> 0 | H131: Composite CI (gCO2e/MJ) | I131: Indirect Land Use, g/MJ | M131: =IF('Site-Specific Inputs'!AA33=0,0,IF('Site-Specific Inputs'!$R$33>0,11.8,0)) -> 0
C132: Total Well-to-Tank CI, g/MJ | G132: =IFERROR(SUM(G93:G131),0) -> 0 | H132: =IFERROR((M132*K109+G132*E109)/(K109+E109),"0.0") -> 0.0 | I132: Total Well-to-Tank CI, g/MJ | M132: =IF(SUM(M93:M131)>0,SUM(M93:M131),"0.00") -> 0.00
B134: Footnotes:
B135: (1) Filter Cake is assumed to be returned to the fields from where the sugarcane was harvested. Hence it is the weighted average distance of all sugarcane procured from Company-owned and Partnership sugarcane farms, plus 2 miles for distribution on the farms.
B137: (2) The fraction of sugarcane that was mechanically harvested applies to the 9-month or 12-month annual sugarcane harvest cycle.
B139: (3) The Juice-to-Sugar Share is the monthly weighted average fraction of juice that is directed to Table or Finished Sugar production. Preferably, this is measured after the cane has been crushed,
B140: and the juice has been treated for pH and decanted. The juice-to sugar share is then the quantity of juice sent to sugar production or factory / total juice crushed after losses (mass basis).
B142: (4) The level of sucrose in the juice is a proxy for all sugars that can be crystallized or fermented into table sugar and ethanol, respectively. The percentage sucrose in the pre-treated juice is measured
B143: after the pH of the juice has been adjusted, the juice has been decanted, and enters the table sugar or ethanol production process.
B144: This level of sucrose is not the same as the sucrose measured in the juice extracted immediately after the sugarcane crush (as production losses, and some dilution of the juice are expected).
B146: (5) Adjusted Anhydrous and Hydrous Ethanol Production: The anhydrous and hydrous ethanol produced is adjusted by the estimated amount of ethanol produced from externally acquired molasses.
B148: (6) Note: To calculate CI after all data entered, click "Calculate" button. Else, go to the "Data" tab in the Excel Header above, click "Solver", then click "Solve" and accept the dialogue box after it finds solution.
B150: (7) A Site-Specific fraction for Mechanized Harvesting applicable to a cluster of sugarcane farms from where cane is procured is not supported in the Tier 1 Simplified CI Calculator at this time.
B152: (8) The Net Electricity Credited to the pathway is gross amount (Field 5.7) less Transmissions & Distribution losses for Brazil (Field 1.8), and adjusted in proportion to fermentable sugars allocated to juice and molasses production.
B154: (9) Staff assumes that steam leaves the Steam Turbine/Generator as Saturated Steam at 150 psi (10.55 kgf/cm2, 10.2 atm, 358deg F/181deg C)
B155: Enthalpy of Saturated Steam at Exit Conditions = | D155: 2,633.174 Btu/kg or 1,194.4 Btu/lb
B156: Therefore, Energy Remaining in Exit Steam = | D156: =2633.174*1000 -> 2633174 | E156: Btu/metric tonne steam
B157: Useful Energy = (LHV Bagasse - Enthalpy of Exit Steam) x Steam Boiler Efficiency x Power Conversion Efficiency
B159: (10) The Exported Volume of anhydrous ethanol is adjusted to account for temperature correction in Oregon/U.S.A. All liquid fuel amounts reported in the LRT-CBTS must be adjusted to standard temperature conditions adjusted to standard
B160: of 60°F using the relation Vs,e = Va,e x (-0.0006301 x T + 1.0378), where
B161: Vs,e is the standardized volume of ethanol at 60 °F, in gallons; and Va,e is the standardized volume of ethanol at 60 °F, in gallons; and T is the actual temperature of the batch, in °F.
B163: (11) Yeast usage is assumed to parallel the yeast usage for corn-derived ethanol; 0.358 kg/tonne of corn (Wang et al, 2012).*
B164: *Michael Wang et al 2012 Environ. Res. Lett. 7 045905
B165: Therefore, Yeast Usage is 358 g/1000 kg corn or | D165: =1000*2.2046/56 -> 39.36785714 | E165: bushels of corn
B166: Assuming, Corn-based ethanol yields to be | D166: 2.72 | E166: gallons per bushel corn
B167: Yeast Usage = 358 g / (3.3937 bu x 2.72 gal / bu) = | D167: =358/(D165*D166) -> 3.343276892 | E167: g yeast / gallon of ethanol.

Sheet Pathway Summary
C2: Sugarcane Ethanol Pathway Summary
C4: FOR APPLICANT ONLY - CONTAINS CONFIDENTIAL BUSINESS INFORMATION - DO NOT DISTRIBUTE
B7: Application # | C7: =IF('Site-Specific Inputs'!C3="","",'Site-Specific Inputs'!C3) ->  | E7: Finished Fuel Quantities
B8: Company Name and ID | C8: =IF('Site-Specific Inputs'!C4="","",CONCATENATE('Site-Specific Inputs'!C4," ","(",'Site-Specific Inputs'!C5,")")) ->  | E8: Unit | F8: Undenatured Anhydrous Ethanol Produced | G8: Denaturant Added | H8: Denatured Anhydrous Ethanol Produced | I8: Total Ethanol from Sugarcane Juice | J8: Total Ethanol from Sugarcane Molasses | K8: Total Ethanol Produced | L8: Ethanol Yield from Sugarcane Juice | M8: Ethanol Yield from Sugarcane Molasses
B9: Facility Address and ID | C9: =IF('Site-Specific Inputs'!C6="","",'Site-Specific Inputs'!C6) ->  | E9: gallons | F9: =IF('Site-Specific Inputs'!V$33>0,'Site-Specific Inputs'!$V$33*'OR-GREET4.0'!C102,"") ->  | G9: =IF('EF Tables'!G114>0,'EF Tables'!G114,"") ->  | H9: =IF(SUM(F9:G9)>0,SUM(F9:G9),"") ->  | I9: =IF('Calculated Parameters'!G$25>0,'Calculated Parameters'!G$25,"") ->  | J9: =IF('Calculated Parameters'!F$25>0,'Calculated Parameters'!F$25,"") ->  | K9: =IFERROR(J9+I9,"") ->  | L9: =IF('Calculated Parameters'!G$23>0,'Calculated Parameters'!G$23,"") ->  | M9: =IF('Calculated Parameters'!F$23>0,'Calculated Parameters'!F$23,"") -> 
B10: Operational Data Period | C10: =IF('Site-Specific Inputs'!E9>0,CONCATENATE(TEXT(MIN('Site-Specific Inputs'!E9:E32),"mm/yyyy")," — ",TEXT(MAX('Site-Specific Inputs'!E9:E32),"mm/yyyy")),) -> 0 | E10: MJ (LHV) | F10: =IFERROR(F9*'OR-GREET4.0'!$D$77,"") ->  | G10: =IFERROR(G9*'OR-GREET4.0'!D75,"") ->  | H10: =IF(SUM(F10:G10)>0,SUM(F10:G10),"") ->  | I10: =IFERROR(I9*'OR-GREET4.0'!$D$77,"") ->  | J10: =IFERROR(J9*'OR-GREET4.0'!$D$77,"") ->  | K10: =IFERROR(K9*'OR-GREET4.0'!$D$77,"") ->  | L10: (gallons/m.t. cane) | M10: (gallons/m.t. cane)
P11: NO
B12: Fuel Pathway Inputs | F12: Emission Factors | H12: Emissions | I12: Carbon Intensity gCO2e/MJ d-EtOH, LHV
B13: Category | C13: Name | D13: Value | E13: Unit | F13: Value | G13: Unit | H13: gCO2e | I13: Sugarcane Ethanol Composite | J13: Sugarcane Juice | K13: Sugarcane Molasses
B14: Feedstock Production | C14: Sugarcane Farming | D14: =IF('Site-Specific Inputs'!J$33>0,'Site-Specific Inputs'!J$33,"") ->  | E14: metric tons sugarcane | F14: ='EF Tables'!U$38 -> 8306.896663 | G14: gCO2e/metric ton cane | H14: =IFERROR(F14*D14,"") ->  | I14: =IFERROR((J14*'Calculated Parameters'!G$25+K14*'Calculated Parameters'!F$25)/('Calculated Parameters'!F$25+'Calculated Parameters'!G$25),"") ->  | J14: =IFERROR(H14*(1-'Site-Specific Inputs'!R$33)/('Calculated Parameters'!G$25*'OR-GREET4.0'!D$77)*(F10/H10),"") ->  | K14: =IFERROR(H14*'Site-Specific Inputs'!R$33*'Calculated Parameters'!G$30/('Calculated Parameters'!F$25*'OR-GREET4.0'!$D$77)*(F10/H10),"") -> 
C15: Fertilizer & Agricultural Chemicals | D15: =IF('Site-Specific Inputs'!J$33>0,'Site-Specific Inputs'!J$33,"") ->  | E15: metric tons sugarcane | F15: ='EF Tables'!V$38 -> 8163.026607 | G15: gCO2e/metric ton cane | H15: =IFERROR(F15*D15,"") ->  | I15: =IFERROR((J15*'Calculated Parameters'!G$25+K15*'Calculated Parameters'!F$25)/('Calculated Parameters'!F$25+'Calculated Parameters'!G$25),"") ->  | J15: =IFERROR(H15*(1-'Site-Specific Inputs'!R$33)/('Calculated Parameters'!G$25*'OR-GREET4.0'!D$77)*(F10/H10),"") ->  | K15: =IFERROR(H15*'Site-Specific Inputs'!R$33*'Calculated Parameters'!G$30/('Calculated Parameters'!F$25*'OR-GREET4.0'!$D$77)*(F10/H10),"") -> 
C16: N2O from N fertilizer and Above/Below Ground Biomass | D16: =IF('Site-Specific Inputs'!J$33>0,'Site-Specific Inputs'!J$33,"") ->  | E16: metric tons sugarcane | F16: ='EF Tables'!W$38 -> 14385.15232 | G16: gCO2e/metric ton cane | H16: =IFERROR(F16*D16,"") ->  | I16: =IFERROR((J16*'Calculated Parameters'!G$25+K16*'Calculated Parameters'!F$25)/('Calculated Parameters'!F$25+'Calculated Parameters'!G$25),"") ->  | J16: =IFERROR(H16*(1-'Site-Specific Inputs'!R$33)/('Calculated Parameters'!G$25*'OR-GREET4.0'!D$77)*(F10/H10),"") ->  | K16: =IFERROR(H16*'Site-Specific Inputs'!R$33*'Calculated Parameters'!G$30/('Calculated Parameters'!F$25*'OR-GREET4.0'!$D$77)*(F10/H10),"") -> 
C17: Straw Burning in Field | D17: =IF('Site-Specific Inputs'!J$33>0,'Site-Specific Inputs'!J$33,"") ->  | E17: metric tons sugarcane | F17: ='OR-GREET4.0'!E$30 -> 17336 | G17: gCO2e/metric ton cane | H17: =IFERROR(F17*D17,"") ->  | I17: =IFERROR((J17*'Calculated Parameters'!G$25+K17*'Calculated Parameters'!F$25)/('Calculated Parameters'!F$25+'Calculated Parameters'!G$25),"") ->  | J17: =IFERROR(H17*(1-'Site-Specific Inputs'!R$33)/('Calculated Parameters'!G$25*'OR-GREET4.0'!D$77)*(F10/H10),"") ->  | K17: =IFERROR(H17*'Site-Specific Inputs'!R$33*'Calculated Parameters'!G$30/('Calculated Parameters'!F$25*'OR-GREET4.0'!$D$77)*(F10/H10),"") -> 
C18: Credit for Mechanized Harvesting | D18: =IF('Site-Specific Inputs'!J$33>0,'Site-Specific Inputs'!J$33,"") ->  | E18: metric tons sugarcane | F18: ='Site-Specific Inputs'!C36 -> 0.65 | G18: Reduction in Straw Burning Emissions | H18: =IFERROR(-F18*H17,"") ->  | I18: =IFERROR((J18*'Calculated Parameters'!G$25+K18*'Calculated Parameters'!F$25)/('Calculated Parameters'!F$25+'Calculated Parameters'!G$25),"") ->  | J18: =IFERROR(H18*(1-'Site-Specific Inputs'!R$33)/('Calculated Parameters'!G$25*'OR-GREET4.0'!D$77)*(F10/H10),"") ->  | K18: =IFERROR(H18*'Site-Specific Inputs'!R$33*'Calculated Parameters'!G$30/('Calculated Parameters'!F$25*'OR-GREET4.0'!$D$77)*(F10/H10),"") -> 
C19: Sugarcane Land Use Change | D19: =IFERROR(K9*'OR-GREET4.0'!D$77,"") ->  | E19: MJ sugarcane EtOH, LHV | F19: ='OR-GREET4.0'!E33 -> 11.8 | G19: gCO2e/MJ sugarcane EtOH, LHV | H19: =IFERROR(D19*F19,"") ->  | I19: =IFERROR((J19*'Calculated Parameters'!G$25+K19*'Calculated Parameters'!F$25)/('Calculated Parameters'!F$25+'Calculated Parameters'!G$25),"") ->  | J19: =IFERROR(H19/K10*(F10/H10),"") ->  | K19: =IFERROR(H19/K10*(F10/H10),"") ->  | Q19: gallons | R19: MJ (LHV)
B20: Feedstock Transport | C20: Field Harvest to Stack | D20: =IF('Site-Specific Inputs'!J33*'OR-GREET4.0'!E$34>0,'Site-Specific Inputs'!J33*'OR-GREET4.0'!E$34,"") ->  | E20: metric ton-miles | F20: ='OR-GREET4.0'!E38 -> 388.3 | G20: gCO2e/metric ton-mile | H20: =IFERROR(D20*F20,"") ->  | I20: =IFERROR((J20*'Calculated Parameters'!G$25+K20*'Calculated Parameters'!F$25)/('Calculated Parameters'!F$25+'Calculated Parameters'!G$25),"") ->  | J20: =IFERROR(H20*'OR-GREET4.0'!E$42/('Calculated Parameters'!G$25*'OR-GREET4.0'!D$77)*(F10/H10),"") ->  | K20: =IFERROR(('Calculated Parameters'!$G$30*H20/'Site-Specific Inputs'!$J$33)/('Calculated Parameters'!E$34*'OR-GREET4.0'!C$77*'OR-GREET4.0'!H$87)*(F10/H10),"") -> 
C21: From Stack to Fuel Production Facility | D21: =IFERROR('Site-Specific Inputs'!J33*('Site-Specific Inputs'!F33*'Site-Specific Inputs'!G33+'Site-Specific Inputs'!H33*'Site-Specific Inputs'!I33)/('Site-Specific Inputs'!F33+'Site-Specific Inputs'!H33)/1.609,"") ->  | E21: metric ton-miles | F21: ='OR-GREET4.0'!E39 -> 282.4879954 | G21: gCO2e/metric ton-mile | H21: =IFERROR(D21*F21,"") ->  | I21: =IFERROR((J21*'Calculated Parameters'!G$25+K21*'Calculated Parameters'!F$25)/('Calculated Parameters'!F$25+'Calculated Parameters'!G$25),"") ->  | J21: =IFERROR(H21*'OR-GREET4.0'!E$42/('Calculated Parameters'!G$25*'OR-GREET4.0'!D$77)*(F10/H10),"") ->  | K21: =IFERROR(('Calculated Parameters'!$G$30*H21/'Site-Specific Inputs'!$J$33)/('Calculated Parameters'!E$34*'OR-GREET4.0'!C$77*'OR-GREET4.0'!H$87)*(F10/H10),"") -> 
C22: Return of Filtercake from Fuel Production Facility to Field | D22: =IF('OR-GREET4.0'!E40*'Site-Specific Inputs'!J33*('Site-Specific Inputs'!K33/1.609)/1000>0,'OR-GREET4.0'!E40*'Site-Specific Inputs'!J33*('Site-Specific Inputs'!K33/1.609)/1000,"") ->  | E22: metric ton-miles | F22: ='OR-GREET4.0'!E39 -> 282.4879954 | G22: gCO2e/metric ton-mile | H22: =IFERROR(D22*F22,"") ->  | I22: =IFERROR((J22*'Calculated Parameters'!G$25+K22*'Calculated Parameters'!F$25)/('Calculated Parameters'!F$25+'Calculated Parameters'!G$25),"") ->  | J22: =IFERROR(H22*'OR-GREET4.0'!E$42/('Calculated Parameters'!G$25*'OR-GREET4.0'!D$77)*(F10/H10),"") ->  | K22: =IFERROR(('Calculated Parameters'!$G$30*H22/'Site-Specific Inputs'!$J$33)/('Calculated Parameters'!E$34*'OR-GREET4.0'!C$77*'OR-GREET4.0'!H$87)*(F10/H10),"") -> 
B23: Molasses Production | C23: Finished (Table Sugar Production) | D23: ='OR-GREET4.0'!E$43 -> 4078.48 | E23: gCO2e/metric tons cane | F23: =D23*'Site-Specific Inputs'!J33*'Site-Specific Inputs'!R33 -> 0 | G23: gCO2e (Sugar Production) | H23: =IF(F23*'Calculated Parameters'!G30>0,F23*'Calculated Parameters'!G30,"") ->  | I23: =IFERROR((J23*'Calculated Parameters'!G$25+K23*'Calculated Parameters'!F$25)/('Calculated Parameters'!F$25+'Calculated Parameters'!G$25),"") ->  | K23: =IFERROR(H23/J10*(F10/H10),"") -> 
B24: Ethanol Production | C24: Biomass Generated | D24: =IF('Site-Specific Inputs'!J33*'OR-GREET4.0'!E45*(1-'OR-GREET4.0'!E46)>0,'Site-Specific Inputs'!J33*'OR-GREET4.0'!E45*(1-'OR-GREET4.0'!E46),"") ->  | E24: dry metric tons | F24: =('OR-GREET4.0'!E44/10^6)*('OR-GREET4.0'!E49*'OR-GREET4.0'!K73+'OR-GREET4.0'!K74*'OR-GREET4.0'!E50+'OR-GREET4.0'!E51*'OR-GREET4.0'!K75+'OR-GREET4.0'!K76*'OR-GREET4.0'!E52) -> 33327.8738 | G24: gCO2e/dry metric tons | H24: =IFERROR(D24*F24,"") ->  | I24: =IFERROR((J24*'Calculated Parameters'!G$25+K24*'Calculated Parameters'!F$25)/('Calculated Parameters'!F$25+'Calculated Parameters'!G$25),"") ->  | J24: =IFERROR(H24*'OR-GREET4.0'!E42/I10*(F10/H10),"") ->  | K24: =IFERROR(H24*(1-'OR-GREET4.0'!E42)*'Calculated Parameters'!G30/J10*(F10/H10),"") -> 
C25: Grid Electricity Purchased | D25: =IF('Site-Specific Inputs'!P33>0,'Site-Specific Inputs'!P33,"") ->  | F25: ='OR-GREET4.0'!E56 -> 110.5727336 | G25: gCO2e/kWh | I25: =IFERROR((J25*'Calculated Parameters'!G$25+K25*'Calculated Parameters'!F$25)/('Calculated Parameters'!F$25+'Calculated Parameters'!G$25),"") ->  | J25: =IFERROR(H25*'OR-GREET4.0'!E42/'Pathway Summary'!I10*(F10/H10),"") ->  | K25: =IFERROR(H25*'Site-Specific Inputs'!R33*'Calculated Parameters'!G30/'Pathway Summary'!J10*(F10/H10),"") -> 
C26: Chemical Use (Lime) | D26: =K$9 ->  | E26: total gal Ethanol | F26: =IF('OR-GREET4.0'!E$54>0,'OR-GREET4.0'!E$54,"") -> 37.25823 | G26: gCO2e/gal Ethanol | H26: =IFERROR(F26*D26,"") ->  | I26: =IFERROR((J26*'Calculated Parameters'!G$25+K26*'Calculated Parameters'!F$25)/('Calculated Parameters'!F$25+'Calculated Parameters'!G$25),"") ->  | J26: =IFERROR(F26*I$9/I$10*(F10/H10),"") ->  | K26: =IFERROR(F26*J$9/J$10*(F10/H10),"") -> 
C27: Process Fuel (Residual Oil) | D27: =K$9 ->  | E27: total gal Ethanol | F27: =IF('OR-GREET4.0'!E53>0,'OR-GREET4.0'!E$53,"") -> 2.96854 | G27: gCO2e/gal Ethanol | H27: =IFERROR(F27*D27,"") ->  | I27: =IFERROR((J27*'Calculated Parameters'!G$25+K27*'Calculated Parameters'!F$25)/('Calculated Parameters'!F$25+'Calculated Parameters'!G$25),"") ->  | J27: =IFERROR(F27*I$9/I$10*(F10/H10),"") ->  | K27: =IFERROR(F27*J$9/J$10*(F10/H10),"") -> 
C28: Chemical Use (Yeast) | D28: =K$9 ->  | E28: total gal Ethanol | F28: =IF('OR-GREET4.0'!E$55>0,'OR-GREET4.0'!E$55,"") -> 7.7611325 | G28: gCO2e/gal Ethanol | I28: =IFERROR((J28*'Calculated Parameters'!G$25+K28*'Calculated Parameters'!F$25)/('Calculated Parameters'!F$25+'Calculated Parameters'!G$25),"") ->  | J28: =IFERROR(F28*I$9/I$10*(F10/H10),"") ->  | K28: =IFERROR(F28*J$9/J$10*(F10/H10),"") -> 
C29: Evaporative Emissions (Non-Combustive ) | D29: =IFERROR(H$10,"") ->  | E29: MJ denatured-EtOH | F29: 0.08669474691 | G29: gCO2e/MJ d-EtOH | I29: =IFERROR(H29/H10,"") ->  | J29: =IFERROR(H29/H10,"") ->  | K29: =IFERROR(H29/H10,"") -> 
B30: Co-Product Credit | C30: Surplus Cogenerated Electricity Export Credit | D30: =IF('EF Tables'!F$75>0,'EF Tables'!F$75,"") ->  | E30: Net KWh Credited | F30: =IF('Site-Specific Inputs'!C26="Brazil",'OR-GREET4.0'!E56,'Site-Specific Inputs'!C27) -> 110.5727336 | G30: gCO2e/kWh Electricity Exported | I30: =IFERROR((J30*'Calculated Parameters'!G$25+K30*'Calculated Parameters'!F$25)/('Calculated Parameters'!F$25+'Calculated Parameters'!G$25),"") ->  | J30: =IFERROR(-H$30/($K$9*'OR-GREET4.0'!$D$77)*(F10/H10),"") ->  | K30: =IFERROR(-H$30/($K$9*'OR-GREET4.0'!$D$77)*(F10/H10),"") -> 
B31: Finished Fuel Transport | C31: Truck Transport to Port / Terminal | D31: =IFERROR(('Site-Specific Inputs'!C30/1.609)*F$9,"") ->  | E31: gallon-miles | F31: ='OR-GREET4.0'!E60 -> 0.574 | G31: gCO2e/gal-mile | I31: =IFERROR(H31/H10,"") ->  | J31: =IFERROR(H31/H10,"") ->  | K31: =IFERROR(H31/H10,"") -> 
C32: Pipeline Transport to Terminal | D32: =IFERROR(('Site-Specific Inputs'!C31/1.609)*F$9,"") ->  | E32: gallon-miles | F32: ='OR-GREET4.0'!E61 -> 0.0461 | G32: gCO2e/gal-mile | I32: =IFERROR(H32/H10,"") ->  | J32: =IFERROR(H32/H10,"") ->  | K32: =IFERROR(H32/H10,"") -> 
C33: Ocean Transport to Oregon Port | D33: =IFERROR(('Site-Specific Inputs'!C$33/1.609)*F$9,"") ->  | E33: gallon-miles | F33: 0.06078264293 | G33: gCO2e/gal-mile | H33: =IFERROR(D$33*F$33,"") ->  | I33: =IFERROR(H33/H10,"") ->  | J33: =IFERROR(H33/H10,"") ->  | K33: =IFERROR(H33/H10,"") -> 
B34: Oregon Port | C34: Denaturant Added | D34: =IF(G$10>0,G$10,"") ->  | E34: MJ, LHV | F34: ='OR-GREET4.0'!H75 -> 97.91 | G34: gCO2e/MJ (LHV) | H34: =IFERROR(D34*F34,"") ->  | I34: =IFERROR(H34/H10,"") ->  | J34: =IFERROR(H34/H10,"") ->  | K34: =IFERROR(H34/H10,"") -> 
B35: Finished Fuel Transport in Oregon | C35: Oregon Port to Refueling Stations | D35: =IFERROR(('OR-GREET4.0'!E64)*H$9,"") ->  | E35: gallon-miles | F35: ='OR-GREET4.0'!E63 -> 0.574 | G35: gCO2e/gal-mile | H35: =IFERROR(D35*F35,"") ->  | I35: =IFERROR(H35/H10,"") ->  | J35: =IFERROR(H35/H10,"") ->  | K35: =IFERROR(H$35/H$10,"") -> 
B36: Fuel Pathway Carbon Intensity (gCO2e/MJ Denatured Ethanol, LHV) | I36: =IFERROR(('Pathway Summary'!K36*'Pathway Summary'!J10+'Pathway Summary'!J36*'Pathway Summary'!I10)/('Pathway Summary'!J10+'Pathway Summary'!I10),"0.00") -> 0.00 | J36: =IFERROR(SUM(J14:J35),"0.00") -> 0 | K36: =IFERROR(SUM(K14:K35),"0.00") -> 0
B37: Margin of Safety (entered by applicant)
B38: Certified Fuel Pathway Composite Carbon Intensity (gCO2e/MJ Denatured Ethanol, LHV) | I38: =IF((I36+I37)>0,(I36+I37),"") ->  | M38: =IFERROR(#REF!+#REF!,"") -> 
B40: Operating Conditions
C51: `

Sheet OR-GREET4.0
B2: Tier 1 Sugarcane-derived Ethanol Calculator Inputs and Emission Factors
B3: Category | C3: Sub-Category | D3: Name | E3: Value | F3: Unit
B4: Feedstock Production | C4: Farming | D4: Total Farming Energy | E4: 93900 | F4: Btu/tonne sugarcane
D5: Individual Fuel Shares
D6: Diesel Fuel | E6: 36385 | F6: Btu/tonne sugarcane
D7: Gasoline | E7: 11685 | F7: Btu/tonne sugarcane
D8: Natural Gas | E8: 19324 | F8: Btu/tonne sugarcane
D9: Liquefied Petroleum Gas | E9: 17956 | F9: Btu/tonne sugarcane
D10: Electricity | E10: 8550 | F10: Btu/tonne sugarcane
C11: Fertilizers and Pesticides | D11: Fertilizer Use at | E11: 0.8 | F11: Mechanized Harvesting Level
D12: Nitrogen | E12: 996 | F12: (g / tonne)
D13: P2O5 | E13: 317 | F13: (g / tonne)
D14: K2O | E14: 1371.28 | F14: (g / tonne)
D15: CaCO3 | E15: 5200 | F15: (g / tonne)
D16: Herbicide | E16: 45 | F16: (g / tonne)
D17: Pesticide | E17: 2.5 | F17: (g / tonne)
D18: Fertilizer Use at | E18: 0.65 | F18: Mechanized Harvesting Level
D19: Nitrogen | E19: 1119 | F19: (g / tonne)
D20: P2O5 | E20: 311 | F20: (g / tonne)
D21: K2O | E21: 1237 | F21: (g / tonne)
D22: CaCO3 | E22: 5200 | F22: (g / tonne)
D23: Herbicide | E23: 45 | F23: (g / tonne)
D24: Pesticide | E24: 3 | F24: (g / tonne)
C25: N2O in soil | D25: N in N2O as % of N in N fertilizer | E25: 0.01325 | F25: IPCC Tier 1;
D26: N in N2O as % of N in biomass | E26: 0.01225 | F26: IPCC Tier 1;
C27: Field Straw Burning | D27: Straw Yield | E27: 0.238 | F27: dry tonne/wet tonne of sugarcane
D28: Moisture in straw | E28: 0.15
D29: Fraction of Straw Burnt in Field, % | E29: 0.9
D30: Straw Burning Emissions Factor | E30: 17336 | F30: gCO2e/tonne cane
C31: Mechanized Harvesting Credit | D31: Standard (Sao Paulo State) | E31: 0.8
D32: Non-Sao Paulo States | E32: 0.65
C33: Land Use Change | D33: Sugarcane | E33: 11.8 | F33: gCO2e/MJ Ethanol
B34: Feedstock Transport | C34: Field to Stack Transport Distance (Standard) | D34: Field Sugarcane Collection to Stack, MDT | E34: 2 | F34: miles
C35: Stack to Fuel Production Facility Distance | D35: Applicant-Owned Farms (Propria) | E35: ='Site-Specific Inputs'!G$33/1.609 -> 0 | F35: weighted average distance (miles)
D36: Partnership Farms (Terceiros) | E36: ='Site-Specific Inputs'!I33/1.609 -> 0 | F36: weighted average distance (miles)
C37: Sugarcane Transport | D37: Transport Loss Factor | E37: 1.0204 | F37: %W/%W
C38: Transport Emissions | D38: Medium Heavy-Duty Truck | E38: 388.3 | F38: gCO2e/tonne-mile
D39: Heavy Heavy-Duty Truck | E39: 282.4879954 | F39: gCO2e/tonne-mile
B40: Return of Filtercake to Field | C40: Filtercake Transport | D40: Filter Cake Yield and Application Rate | E40: 2.87 | F40: kg/metric tonne cane
D41: From Fuel Production Facility to Farms | E41: ='Site-Specific Inputs'!K33 -> 0.0 | F41: weighted average distance (miles)
B42: Mass Allocation of Juice | C42: Juice Share for Ethanol Plant | D42: Juice Allocated for Fermentation | E42: =1-'Site-Specific Inputs'!R33 -> 1 | F42: mass fraction of sugarcane for ethanol
B43: Finished (Table) Sugar Production | C43: Total Production Emissions | D43: Production Emissions | E43: 4078.48 | F43: gCO2e/wet tonne cane
B44: Fuel Production | C44: Process Fuel | D44: Sugarcane bagasse | E44: 13648337 | F44: Btu/metric tonne
D45: Bagasse yield | E45: 0.28 | F45: wet tonne per wet tonne of sugarcane
D46: Moisture in bagasse | E46: 0.5 | F46: %
D47: Steam generation efficiency | E47: 0.8 | F47: %
D48: Power Generation Efficiency | E48: 0.3 | F48: %
D49: CH4 Emissions Factor | E49: 31.65 | F49: g/mmBtu of fuel combusted
D50: N2O Emissions Factor | E50: 4.22 | F50: g/mmBtu of fuel combusted
D51: VOC Emissions Factor | E51: 28.31 | F51: g/mmBtu of fuel combusted
D52: CO Emissions Factor | E52: 194 | F52: g/mmBtu of fuel combusted
D53: Residual Oil Use | E53: 2.96854 | F53: gCO2e/gal EtOH
C54: Chemicals and Enzymes | D54: Chemicals - Lime Use | E54: 37.25823 | F54: gCO2e/gal ethanol
D55: Yeast Use | E55: 7.7611325 | F55: gCO2e/gal Ethanol
C56: Grid Electricity / Displaced Electricity | D56: Grid Electricity CI | E56: 110.5727336 | F56: gCO2e/kWh purchased or displaced
C57: Coproducts | D57: Electric Transmission & Distribution Losses | E57: 0.081
D58: Surplus Cogenerated Electricity Exported | E58: 110.5727336 | F58: gCO2e/kWh
C59: Denaturant | D59: Default Blend Value | E59: 0.025 | F59: %V/%V
B60: Undenatured and Denatured Ethanol Transport | C60: Fuel Production Facility to Refueling Station in Oregon | D60: Heavy Heavy-Duty Truck Transport in Brazil | E60: 0.574 | F60: gCO2e/gal-mile
D61: Pipeline to Port Terminal | E61: 0.0461 | F61: gCO2e/gal-mile
D62: Ocean Tanker to Oregon Port | E62: 0.0608 | F62: gCO2e/gal-mile
D63: Heavy Heavy-Duty Truck in Oregon | E63: 0.574 | F63: gCO2e/gal-mile
D64: Standard Distance | E64: 90 | F64: miles
D65: Loss Factor | E65: 1.0005 | F65: %V/%V
B66: Tailpipe Emissions | C66: Non-CO2 Combustion Emissions | D66: Standard Value | E66: 0 | F66: gCO2e/gal Ethanol
B69: Fuel Specifications, Unit Conversion, eGRID Emission Factors and GWP Values
B71: Fuel Specifications | J71: Global Warming Potentials (CO2e)
C72: Heating Value | F72: Density | G72: LHV/HHV | H72: Lookup Table Carbon Intensity | J72: CO2 | K72: 1
C73: LHV | E73: HHV | J73: CH4 | K73: 25
B74: Liquid Fuels | C74: BTU/gal | D74: MJ/gal | E74: BTU/gal | F74: grams/gal | H74: gCO2e/MJ | J74: N2O | K74: 298
B75: CBOB | C75: 116090 | D75: 122.48 | E75: 124340 | F75: 2767 | G75: 0.934 | H75: 97.91 | J75: VOC | K75: 3.116666667
B76: Low-sulfur diesel | C76: 127453 | D76: 134.47 | E76: 136314 | F76: 3142 | G76: 0.935 | H76: 104.92 | J76: CO | K76: 1.571428571
B77: Ethanol | C77: 76330 | D77: 80.53 | E77: 84530 | F77: 2988 | G77: 0.9029930202 | J77: Source: 'Fuel_Specs' worksheet, OR-GREET4.0
B78: Gaseous Fuels (at 60F and 1atm) | C78: BTU/ft3 | D78: MJ/ft3 | E78: BTU/ft3 | F78: grams/ft3 | G78: LHV/HHV | H78: CI (gCO2e/MJ)
B79: Natural gas | C79: 930 | D79: =C79*H87 -> 0.9812019405 | E79: 1030 | F79: 20.8 | G79: =C79/E79 -> 0.9029126214 | H79: 71.55616572
B80: Methane | C80: 910 | D80: =C80*H87 -> 0.9601008235 | E80: 1010 | F80: 19.2 | G80: =C80/E80 -> 0.900990099
B81: Source: 'Fuel_Specs' worksheet, OR-GREET4.0
B83: Unit Conversion
B84: Energy | C84: 1 J | D84: 1kJ | E84: 1 MJ | F84: 1Wh | G84: 1 kWh | H84: 1 BTU | I84: 1 MMBtu
B85: J | C85: 1 | D85: 1000 | E85: 1000000 | F85: 3600 | G85: 3600000 | H85: 1055.05585 | I85: 1055055850
B86: kJ | C86: 0.001 | D86: 1 | E86: 1000 | F86: 3.6 | G86: 3600 | H86: 1.05505585 | I86: 1055055.85
B87: MJ | C87: 1e-06 | D87: 0.001 | E87: 1 | F87: 0.0036 | G87: 3.6 | H87: 0.00105505585 | I87: 1055.05585
B88: Wh | C88: 0.0002777777778 | D88: 0.2777777778 | E88: 277.7777778 | F88: 1 | G88: 1000 | H88: 0.2930710694 | I88: 293071.0694
B89: kWh | C89: 2.777777778e-07 | D89: 0.0002777777778 | E89: 0.2777777778 | F89: 0.001 | G89: 1 | H89: 0.0002930710694 | I89: 293.0710694
B90: BTU | C90: 0.0009478171227 | D90: 0.9478171227 | E90: 947.8171227 | F90: 3.412141642 | G90: 3412.141642 | H90: 1 | I90: 1000000
B91: MMBtu | C91: 9.478171227e-10 | D91: 9.478171227e-07 | E91: 0.0009478171227 | F91: 3.412141642e-06 | G91: 0.003412141642 | H91: 1e-06 | I91: 1
B92: Mass | C92: 1 g | D92: 1 kg | E92: 1 metric ton | F92: 1 lb | G92: 1 short ton
B93: g | C93: 1 | D93: 1000 | E93: 1000000 | F93: 453.59237 | G93: 907184.74
B94: kg | C94: 0.001 | D94: 1 | E94: 1000 | F94: 0.45359237 | G94: 907.18474
B95: metric ton | C95: 1e-06 | D95: 0.001 | E95: 1 | F95: 0.00045359237 | G95: 0.90718474
B96: lb | C96: 0.002204622622 | D96: 2.204622622 | E96: 2204.622622 | F96: 1 | G96: 2000
B97: short ton | C97: 1.102311311e-06 | D97: 0.001102311311 | E97: 1.102311311 | F97: 0.0005 | G97: 1
B98: Volume | C98: 1 m3 | D98: 1 ml | E98: 1 L | F98: 1 gal | G98: 1 ft3
B99: m3 | C99: 1 | D99: 1e-06 | E99: 0.001 | F99: 0.003785411 | G99: 0.028316847
B100: ml | C100: 1000000 | D100: 1 | E100: 1000 | F100: 3785.411 | G100: 28316.847
B101: L | C101: 1000 | D101: 0.001 | E101: 1 | F101: 3.785411 | G101: 28.316847
B102: gal | C102: 264.1721071 | D102: 0.0002641721071 | E102: 0.2641721071 | F102: 1 | G102: 7.480521138
B103: ft3 | C103: 35.31466621 | D103: 3.531466621e-05 | E103: 0.03531466621 | F103: 0.1336805259 | G103: 1
B104: Source: 'Fuel_Specs' worksheet, OR-GREET4.0
B106: Grid Electricity EF (gCO2e/kWh)
B108: ORMX | C108: 403.0760263
B109: AKMS | C109: 305.0595453
B110: AZNM | C110: 452.5979964
B111: Brazil | C111: 110.5727336
B112: CAMX | C112: 329.315509
B113: Canada | C113: 142.5873345
B114: ERCT | C114: 470.4603747
B115: FRCC | C115: 500.0897813
B116: HIMS | C116: 729.769644
B117: HIOA | C117: 993.0409075
B118: MROE | C118: 835.1729646
B119: MROW | C119: 522.2755266
B120: NEWE | C120: 343.9333755
B121: NWPP | C121: 341.7320862
B122: NYCW | C122: 522.5910041
B123: AKGD | C123: 739.3736966
B124: NYUP | C124: 153.9203041
B125: PRMS | C125: 864.8480365
B126: RFCE | C126: 403.0232799
B127: RFCM | C127: 647.6560142
B128: RFCW | C128: 571.7384883
B129: RMPA | C129: 581.2447114
B130: SPNO | C130: 518.5779611
B131: SPSO | C131: 538.184671
B132: SRMV | C132: 480.1475905
B133: SRMW | C133: 820.1296942
B134: SRSO | C134: 508.7158303
B135: SRTV | C135: 503.5619942
B136: SRVC | C136: 370.789402
B137: User Defined | C137: =IF('Site-Specific Inputs'!C26="User Defined",'Site-Specific Inputs'!C27,"Not Permitted") -> Not Permitted
B138: Source: https://www.epa.gov/egrid

Sheet EF Tables (hidden)
A1: References for Sugarcane Ethanol Pathways (HIDE SHEET)
A3: I. | B3: Factors for Sugarcane Transport to Mill
C5: Sugarcane Transport to Mill
C6: HDD (grams/ton-mile cane transported) | D6: MDD (grams/ton-mile cane transported) | E6: HDD (grams/tonne cane transported) | F6: MDD (grams/tonne cane transported) | G6: Total (grams/tonne cane transported) | H6: Total (gCO2e/tonne cane transported)
C8: =IFERROR((SUMPRODUCT('Site-Specific Inputs'!F9:F32,'Site-Specific Inputs'!G9:G32)+SUMPRODUCT('Site-Specific Inputs'!H9:H32,'Site-Specific Inputs'!I9:I32))/(SUM('Site-Specific Inputs'!F9:F32)+SUM('Site-Specific Inputs'!H9:H32))/1.609,0) -> 0 | D8: 2
B9: VOC | C9: 0.07469223222 | D9: 0.1345000605 | E9: =C$8*C9*1000/(2000*0.4536) -> 0 | F9: =$D$8*D9*1000/(2000*0.4536) -> 0.2965168882 | G9: =F9+E9 -> 0.2965168882 | H9: =G9*'Old Fuel_Specs'!D58 -> 0.9241443017 | K9: GWP
B10: CO | C10: 0.2597406269 | D10: 0.4674639526 | E10: =C$8*C10*1000/(2000*0.4536) -> 0 | F10: =$D$8*D10*1000/(2000*0.4536) -> 1.030564269 | G10: =F10+E10 -> 1.030564269 | H10: =G10*'Old Fuel_Specs'!D59 -> 1.619458138 | J10: VOC | K10: ='Old Fuel_Specs'!D58 -> 3.116666667
B11: CH4 | C11: 0.4637165591 | D11: 0.8370208065 | E11: =C8*C11*1000/(2000*0.4536) -> 0 | F11: =$D$8*D11*1000/(2000*0.4536) -> 1.845283965 | G11: =F11+E11 -> 1.845283965 | H11: =G11*25 -> 46.13209912 | J11: CO | K11: ='Old Fuel_Specs'!D59 -> 1.571428571
B12: N2O | C12: 0.00104817012 | D12: 0.001891041767 | E12: =C8*C12*1000/(2000*0.4536) -> 0 | F12: =$D$8*D12*1000/(2000*0.4536) -> 0.004168963331 | G12: =F12+E12 -> 0.004168963331 | H12: =G12*298 -> 1.242351073 | J12: CH4 | K12: 25
B13: CO2 | C13: 189.0141647 | D13: 341.3601628 | E13: =C8*C13*1000/(2000*0.4536) -> 0 | F13: =$D$8*D13*1000/(2000*0.4536) -> 752.5576782 | G13: =F13+E13 -> 752.5576782 | H13: =G13 -> 752.5576782 | J13: N2O | K13: 298
G14: Total CO2e/tonne cane | H14: =SUM(H9:H13) -> 802.4757309
G15: Total CO2e/MJ (mol feedstock) | H15: =IFERROR('Calculated Parameters'!G30*H14/('Calculated Parameters'!E34*76330*1055.06/10^6),0) -> 0
A16: II. | B16: Factors for Filtercake Transport to Fields | G16: Total CO2e/MJ (cane juice feedstock) | H16: =IFERROR(H14/('Calculated Parameters'!C34*76330*1055.06/10^6),0) -> 0
B17: Filtercake Application Rate | C17: Filtercake Transport to the Cane Fields
B18: 2.87 | C18: HDD (grams/ton-mile cane transported) | D18: HDD (grams/tonne cane transported) | E18: Total (gCO2e/tonne cane transported) | F18: HDD (grams/tonne-mile cane transported)
B19: (kg/MT Cane)
C20: =C8+D8 -> 2
B21: VOC | C21: 0.07469223222 | D21: =(B$18/1000)*$C$20*C21*1000/(2000*0.4536) -> 0.0004725897409 | E21: =D21*K10 -> 0.001472904692 | F21: =C21*2204.6/2000 -> 0.08233324758
B22: CO | C22: 0.2597406269 | D22: =(B$18/1000)*$C$20*C22*1000/(2000*0.4536) -> 0.001643420633 | E22: =D22*K11 -> 0.002582518138 | F22: =C22*2204.6/2000 -> 0.286312093
B23: CH4 | C23: 0.4637165591 | D23: =(B$18/1000)*$C$20*C23*1000/(2000*0.4536) -> 0.002934009093 | E23: =D23*25 -> 0.07335022732 | F23: 0.5111547631
B24: N2O | C24: 0.00104817012 | D24: =(B$18/1000)*$C$20*C24*1000/(2000*0.4536) -> 6.631940577e-06 | E24: =D24*298 -> 0.001976318292 | F24: 0.001155397924
B25: CO2 | C25: 189.0141647 | D25: =(B$18/1000)*$C$20*C25*1000/(2000*0.4536) -> 1.195922956 | E25: =D25 -> 1.195922956 | F25: 208.3503137 | H25: "EF"
E26: =SUM(E21:E25) -> 1.275304924 | F26: Total CO2e/tonne cane | H26: =E26+H14 -> 803.7510358 | I26: gCO2e/tonne
E27: =IFERROR('Calculated Parameters'!$G$30*E26/('Calculated Parameters'!E$34*76330*1055.06/10^6),0) -> 0 | F27: Total CO2e/MJ (mol feedstock) | H27: =C8+D8 -> 2 | I27: miles total transport
E28: =IFERROR(E26/('Calculated Parameters'!C$34*76330*1055.06/10^6),0) -> 0 | F28: Total CO2e/MJ (cane juice feedstock) | H28: =H26/H27 -> 401.8755179 | I28: gCO2e/tonne-mile | Q28: AGGREGATION WORK AREA
A29: III. | B29: Factors for Sugarcane Farming, Fertilizer, Herbicide/Insecticide Use, and Sugarcane/Filtercake Transport, and Harvesting. | K29: Applicable Fraction
D30: Sugarcane Farming, Fertilizer, and Herbicide/Insecticide Use (grams/tonne cane) | K30: ='Site-Specific Inputs'!$C$36 -> 0.65 | Q30: Molasses CI (g CO2/MJ) | R30: Juice-to-Ethanol CI (gCO2e/MJ)
C31: Sugarcane Farming* | D31: Nitrogen | E31: P2O5 | F31: K2O | G31: CaCO3 | H31: Herbicide | I31: Insecticide | J31: Sugarcane Straw Field Burning | K31: Mechanized Harvesting | L31: Sugarcane Transportation | M31: Sugarcane Filtercake Transportation | N31: Feedstock Total (g/tonne) | T31: Disaggregated Impacts of Sugarcane Agriculture and Farming
B32: Total Emissions: grams/mmBtu of fuel throughput, except as noted | C32: Per tonne | D32: =IF('OR-GREET4.0'!$E$31=80%,'EF Tables'!B161,'EF Tables'!I161) -> 995.8 | E32: =IF('OR-GREET4.0'!$E$31=80%,'EF Tables'!C161,'EF Tables'!J161) -> 317.3264 | F32: =IF('OR-GREET4.0'!$E$31=80%,'EF Tables'!D161,'EF Tables'!K161) -> 1371.28 | G32: 5200 | H32: 45 | I32: 2.5 | J32: Per tonne | Q32: Sugarcane Farming | U32: Cane Farming Only | V32: Fertilizer, and Herbicide / Insecticide Only Total (g/tonne) | W32: N2O in Soil
B33: VOC | C33: 10.42205447 | D33: =IF('OR-GREET4.0'!$E$31=80%,'EF Tables'!B162,'EF Tables'!I162) -> 6.527498733 | E33: =IF('OR-GREET4.0'!$E$31=80%,'EF Tables'!C162,'EF Tables'!J162) -> 0.08455971678 | F33: =IF('OR-GREET4.0'!$E$31=80%,'EF Tables'!D162,'EF Tables'!K162) -> 0.1290792996 | G33: 0.02160162083 | H33: 0.09064591551 | I33: 0.00601644665 | J33: 1499.4 | K33: =IF(K$30="","0",-J33*$K$30) -> -974.61 | L33: =G9 -> 0.2965168882 | M33: =D21 -> 0.0004725897409 | N33: =SUM(C33:M33) -> 542.3684457 | Q33: =IFERROR(U39,0) -> - | R33: =IFERROR(U40,0) -> - | T33: VOC | U33: =(C33) -> 10.42205447 | V33: =SUM(D33:I33) -> 6.859401732 | W33: ="-" -> -
B34: CO | C34: 89.4625913 | D34: =IF('OR-GREET4.0'!$E$31=80%,'EF Tables'!B163,'EF Tables'!I163) -> 7.426837014 | E34: =IF('OR-GREET4.0'!$E$31=80%,'EF Tables'!C163,'EF Tables'!J163) -> 0.2920353783 | F34: =IF('OR-GREET4.0'!$E$31=80%,'EF Tables'!D163,'EF Tables'!K163) -> 0.6598283308 | G34: 0.06769147833 | H34: 0.6089002401 | I34: 0.05664447801 | J34: 19706.4 | K34: -12809.16 | L34: =G10 -> 1.030564269 | M34: =D22 -> 0.001643420633 | N34: =SUM(C34:M34) -> 6996.846736 | Q34: Fertilizer, and Herbicide/Insecticide Use | T34: CO | U34: =C34 -> 89.4625913 | V34: =SUM(D34:I34) -> 9.111936919 | W34: ="-" -> -
B35: CH4 | C35: 26.84395546 | D35: =IF('OR-GREET4.0'!$E$31=80%,'EF Tables'!B164,'EF Tables'!I164) -> 30.27172475 | E35: =IF('OR-GREET4.0'!$E$31=80%,'EF Tables'!C164,'EF Tables'!J164) -> 0.500695057 | F35: =IF('OR-GREET4.0'!$E$31=80%,'EF Tables'!D164,'EF Tables'!K164) -> 1.279146505 | G35: 0.2338472157 | H35: 1.611719043 | I35: 0.1076050532 | J35: 578.34 | K35: -375.921 | L35: =G11 -> 1.845283965 | M35: =D23 -> 0.002934009093 | N35: =SUM(C35:M35) -> 265.1159111 | Q35: =IFERROR('Calculated Parameters'!G30*$V$38/('Calculated Parameters'!F23*76330*1055.06/10^6),0) -> 0 | R35: =IFERROR($V$38/('Calculated Parameters'!G23*76330*1055.06/10^6),0) -> 0 | T35: CH4 | U35: =C35 -> 26.84395546 | V35: =SUM(D35:I35) -> 34.00473763 | W35: -
B36: N2O | C36: 0.2559536881 | D36: =IF('OR-GREET4.0'!$E$31=80%,'EF Tables'!B165,'EF Tables'!I165) -> 4.035781674 | E36: =IF('OR-GREET4.0'!$E$31=80%,'EF Tables'!C165,'EF Tables'!J165) -> 0.005250936657 | F36: =IF('OR-GREET4.0'!$E$31=80%,'EF Tables'!D165,'EF Tables'!K165) -> 0.01361686334 | G36: 0.0007869973631 | H36: 0.01585784395 | I36: 0.0009128899331 | J36: 14.994 | K36: -9.7461 | L36: =G12 -> 0.004168963331 | M36: =D24 -> 6.631940577e-06 | N36: =(SUM(C36:M36)+D40) -> 57.8525597 | Q36: N2O in Soil | T36: N2O | U36: =C36 -> 0.2559536881 | V36: =SUM(D36:I36) -> 4.072207205 | W36: =D40 -> 48.27232321
B37: CO2 | C37: 7386.457436 | D37: =IF('OR-GREET4.0'!$E$31=80%,'EF Tables'!B166,'EF Tables'!I166) -> 2725.601607 | E37: =IF('OR-GREET4.0'!$E$31=80%,'EF Tables'!C166,'EF Tables'!J166) -> 183.71762 | F37: =IF('OR-GREET4.0'!$E$31=80%,'EF Tables'!D166,'EF Tables'!K166) -> 483.868374 | G37: 67.57929507 | H37: 668.1047156 | I37: 42.3337086 | J37: 355469.235 | K37: -231055.0028 | L37: =G13 -> 752.5576782 | M37: =D25 -> 1.195922956 | N37: =(SUM(C37:M37)+D38+F38+J38+K38) -> 1173.13648 | Q37: =IFERROR(W39,0) -> - | R37: =IFERROR(W40,0) -> - | T37: CO2 | U37: =C37 -> 7386.457436 | V37: =SUM(D37:I37)+D38+F38 -> 6063.693193 | W37: -
B38: CO2 from Land use change | D38: =IF('OR-GREET4.0'!$E$31=80%,'EF Tables'!B167,'EF Tables'!I167) -> 766.791872 | E38: CO2 from urea use | F38: =IF('OR-GREET4.0'!$E$31=80%,'EF Tables'!D167,'EF Tables'!K167) -> 1125.696 | G38: CO2 from CaCO3 use | J38: -392700 | K38: 255255 | L38: CO2 uptaken from the air | Q38: Cane Transport | T38: Total gCO2e/tonne cane: | U38: =U33*K10+U34*K11+U35*25+U36*298+U37 -> 8306.896663 | V38: =V33*K10+V34*K11+V35*25+V36*298+V37 -> 8163.026607 | W38: =W36*298 -> 14385.15232
B39: VOC from bulk terminal | D39: =IF('OR-GREET4.0'!$E$31=80%,'EF Tables'!B168,'EF Tables'!I168) -> 38.02211146 | E39: NO from N fertilizer and above/below ground biomass | Q39: =H15 -> 0 | R39: =H16 -> 0 | T39: gCO2e/MJ (Molasses Feedstock) | U39: =IFERROR('Calculated Parameters'!$G$30*U38/('Calculated Parameters'!$E$34*76330/10^6)/1055.06,"-") -> - | V39: =IFERROR('Calculated Parameters'!G30*V38/('Calculated Parameters'!$E$34*76330/10^6)/1055.06,"-") -> - | W39: =IFERROR($D$40*298*'Calculated Parameters'!$G$30/('Calculated Parameters'!$E$34*76330*1055.06/10^6),"-") -> -
B40: VOC from refueling station | D40: =IF('Site-Specific Inputs'!C23="Standard for Non-Sao Paulo States",'EF Tables'!I169,'EF Tables'!B169) -> 48.27232321 | E40: N2O from N fertilizer and above/below ground biomass | Q40: Filtercake Transport | T40: gCO2e/MJ (Sugacane Juice Feeedstock) | U40: =IFERROR(U38/('Calculated Parameters'!$C$34*76330/10^6)/1055.06,"-") -> - | V40: =IFERROR(V38/('Calculated Parameters'!$C$34*76330/10^6)/1055.06,"-") -> - | W40: =IFERROR($D$40*298/('Calculated Parameters'!$C$34*76330*1055.06/10^6),"-") -> -
B41: *EFs based upon 95,000 Btu/m.t.cane. If this number, fuel shares, or eGRID Mix changes then EF must be updated. | I41: Total Straw Bunring gCO2e/tonne cane: | J41: =J33*K10+J34*K11+J35*25+J36*298+J37+J38 -> 17336.277 | Q41: =E27 -> 0 | R41: =E28 -> 0
I42: Total gCO2e/MJ (mol feedstock): | J42: =IFERROR('Calculated Parameters'!G30*J41/('Calculated Parameters'!E34*76330*1055.06/10^6),0) -> 0 | K42: =IFERROR(-'EF Tables'!J42*'Site-Specific Inputs'!$C$36,0) -> 0
A43: IV. | B43: Sugar Production Emissions | I43: Total gCO2e/MJ (cane juice feedstock): | J43: =IFERROR($J$41/('Calculated Parameters'!$C34*76330*1055.06/10^6),0) -> 0 | K43: =IFERROR(-'EF Tables'!J43*'Site-Specific Inputs'!$C$36,0) -> 0 | Q43: Sugar Production Emissions
B44: Sugar Production (Gopal-Kammen, 2009) | Q44: =IFERROR(($C$45/'Calculated Parameters'!$F$23/'Site-Specific Inputs'!$AR$50)*'Calculated Parameters'!$G$30,0) -> 0 | R44: 0
B45: gCO2e/wet tonne cane | C45: =3700/(2000*0.4536/1000) -> 4078.483245
A47: V. | B47: Sugarcane Ethanol Production | Q47: Straw Burning Emissions
C48: per gallon | Q48: =IFERROR(J42,0) -> 0 | R48: =IFERROR(J43,0) -> 0
B49: Total Emissions: grams/mmBtu of fuel throughput, except as noted | C49: Lime per gallon of Ethanol {"EtOH")* | D49: Lime emissions per tonne of cane | E49: Lime emissions per tonne of cane (Molasses Feedstock) | F49: Lime emissions per tonne of cane (Cane Juice Feedstock) | G49: Yeast Use, gram per gallon of ethanol produced | H49: Residual Oil
B50: VOC | C50: 0.001791952903 | D50: =C50*'Calculated Parameters'!G23 -> 0 | E50: =IFERROR(D50*'Calculated Parameters'!G$30/'Calculated Parameters'!F$23,"-") -> - | F50: =IFERROR(D50/'Calculated Parameters'!G$23,"-") -> - | G50: 0.003034423012 | H50: 0.0002008659994 | Q50: Mechanized Harvesting Credit
B51: CO | C51: 0.004704100019 | D51: =C51*'Calculated Parameters'!G23 -> 0 | E51: =IFERROR(D51*'Calculated Parameters'!G$30/'Calculated Parameters'!F$23,"-") -> - | F51: =IFERROR(D51/'Calculated Parameters'!G$23,"-") -> - | G51: 0.01209983631 | H51: 0.001452159753 | Q51: =IFERROR(K42,0) -> 0 | R51: =IFERROR(K43,0) -> 0
B52: CH4 | C52: 0.0308080329 | D52: =C52*21.4 -> 0.6592919042 | E52: =IFERROR(D52*'Calculated Parameters'!G$30/'Calculated Parameters'!F$23,"-") -> - | F52: =IFERROR(D52/'Calculated Parameters'!G$23,"-") -> - | G52: 0.02674664068 | H52: 0.005072556598
B53: N2O | C53: 7.167750971e-05 | D53: =C53*21.4 -> 0.001533898708 | E53: =IFERROR(D53*'Calculated Parameters'!G$30/'Calculated Parameters'!F$23,"-") -> - | F53: =IFERROR(D53/'Calculated Parameters'!G$23,"-") -> - | G53: 0.0002586413013 | H53: 5.741710161e-05 | Q53: Ethanol Production Emissions
B54: CO2 | C54: 36.45369565 | D54: =C54*21.4 -> 780.1090869 | E54: =IFERROR(D54*'Calculated Parameters'!G$30/'Calculated Parameters'!F$23,"-") -> - | F54: =IFERROR(D54/'Calculated Parameters'!G$23,"-") -> - | G54: 6.986920045 | H54: 2.821708994 | P54: Residual Oil | Q54: =IF('Site-Specific Inputs'!R$33=0%,0,H58/(76330*1055.06/10^6)) -> 0 | R54: =IF('Site-Specific Inputs'!R$33=100%,0,IF('Site-Specific Inputs'!AA33>0,H58*10^6/(76330*1055.06),"-")) -> -
B55: CO2 from Land use change | P55: Lime Use | Q55: =IF('Site-Specific Inputs'!R$33=0%,0,$E$58*10^6/(76330*1055.06)) -> 0 | R55: =IF('Site-Specific Inputs'!R$33=100%,0,IF('Site-Specific Inputs'!AA33>0,F58*10^6/(76330*1055.06),"-")) -> -
B56: VOC from bulk terminal | P56: Yeast Use | Q56: =IF('Site-Specific Inputs'!R$33=0%,0,G58*10^6/(76330*1055.06)) -> 0 | R56: =IF('Site-Specific Inputs'!R$33=100%,0,IF('Site-Specific Inputs'!AA33>0,G58*10^6/(76330*1055.06),"-")) -> -
B57: VOC from refueling station
C58: =C50*'OR-GREET4.0'!K75+'OR-GREET4.0'!K76*C51+C52*25+C53*298+C54 -> 37.25823345 | D58: (gCO2e/gal ethanol) | E58: =IFERROR((E50*$K$10+E51*$K$11+E52*25+E53*298+E54),"-") -> - | F58: =IFERROR((F50*$K$10+F51*$K$11+F52*25+F53*298+F54),"-") -> - | G58: =(G50*$K$10+G51*$K$11+G52*25+G53*298+G54) -> 7.761132483 | H58: =(H50*$K$10+H51*$K$11+H52*25+H53*298+H54) -> 2.968541203 | Q58: Non-biogenic GHG emissions from sugarcane bagassee combustion
Q59: Allocated to Cane Molasses | R59: Allocated to Juice-EtOH
B60: Non-biogenic GHG emissions from sugarcane bagassee combustion | D60: (grams/mmBtu fuel burned) | E60: Pollutant Emissions (grams for total cane) | F60: Emissions (gCO2e/total cane throughput) | G60: Allocated to Cane Molasses | H60: Allocated to Juice-EtOH | Q60: =IF('Site-Specific Inputs'!R$33=0%,0,G65) -> 0 | R60: =IF('Site-Specific Inputs'!R$33=100%,0,H65) -> 0
B61: VOC | D61: 28.30519957 | E61: =D61*('Old Fuel_Specs'!$H$77/10^6)*'Old Fuel_Specs'!$C$78*'Old Fuel_Specs'!$C$79*'Site-Specific Inputs'!$J$33 -> 0 | F61: =E61*$K$10 -> 0
B62: CO | D62: 194.0013983 | E62: =D62*('Old Fuel_Specs'!$H$77/10^6)*'Old Fuel_Specs'!$C$78*'Old Fuel_Specs'!$C$79*'Site-Specific Inputs'!$J$33 -> 0 | F62: =E62*$K$11 -> 0
B63: CH4 | D63: 31.65 | E63: =D63*('Old Fuel_Specs'!$H$77/10^6)*'Old Fuel_Specs'!$C$78*'Old Fuel_Specs'!$C$79*'Site-Specific Inputs'!$J$33 -> 0 | F63: =E63*$K$12 -> 0 | G63: =F$65*'Site-Specific Inputs'!S$32*'Calculated Parameters'!G30 -> 0 | H63: =F$65*(1-'Site-Specific Inputs'!R$33) -> 0 | I63: (gCO2e)
B64: N2O | D64: 4.22 | E64: =D64*('Old Fuel_Specs'!$H$77/10^6)*'Old Fuel_Specs'!$C$78*'Old Fuel_Specs'!$C$79*'Site-Specific Inputs'!$J$33 -> 0 | F64: =E64*K$13 -> 0 | G64: ='Calculated Parameters'!E33 -> 0 | H64: ='Calculated Parameters'!C$33 -> 0 | I64: (gal Ethanol)
F65: =SUM(F60:F64) -> 0 | G65: =IFERROR(G63/(G64*76330*1055.06/10^6),0) -> 0 | H65: =IFERROR(H63/(H64*76330*1055.06/10^6),0) -> 0 | I65: (gCO2e/MJ)
H66: =H63/H64 -> 
A70: VI. | B70: Surplus Cogenerated Electricity Export Credit | G70: ='Calculated Parameters'!$I$33 -> 0 | H70: kWh per year | Q70: Electricity Co-Product Credit
C71: Ethanol Volume | D71: Allocated to Feedstock | E71: Energy Export | F71: Energy Export | Q71: =IFERROR(IF('Site-Specific Inputs'!#REF!="Yes",-$G$84,"0.0"),0) -> 0 | R71: =IFERROR(IF('Site-Specific Inputs'!#REF!="Yes",-$H$84,"0.0"),0) -> 0
B72: Feedstock | C72: (gal) | D72: (kWh/year) | E72: After Allocation | F72: After T&D Losses | G72: (kWh/gal Ethanol) | H72: (Btu/gal Ethanol)
B73: Molasses-to-EtOH | C73: ='Calculated Parameters'!F$25 -> 0 | D73: =('Site-Specific Inputs'!$Q$33-'Site-Specific Inputs'!$P$33-'Site-Specific Inputs'!$O$33)*'Site-Specific Inputs'!$R$33 -> 0 | E73: =D73*'Calculated Parameters'!$G$30 -> 0 | F73: =E73*(1-'OR-GREET4.0'!E$57) -> 0 | G73: =IFERROR(F73/C73,0) -> 0 | H73: =G73*3412.96 -> 0
B74: Juice-to-EtOH | C74: ='Calculated Parameters'!G$25 -> 0 | D74: =('Site-Specific Inputs'!$Q$33-'Site-Specific Inputs'!$P$33-'Site-Specific Inputs'!$O$33)*(1-'Site-Specific Inputs'!$R$33) -> 0 | E74: =D74 -> 0 | F74: =E74*(1-'OR-GREET4.0'!E$57) -> 0 | G74: =IFERROR(F74/C74,0) -> 0 | H74: =G74*3412.96 -> 0
C75: =SUM(C73:C74) -> 0 | D75: =SUM(D73:D74) -> 0 | E75: =SUM(E73:E74) -> 0 | F75: =SUM(F73:F74) -> 0 | G75: =IFERROR(F75/C75,"0.0") -> 0.0 | H75: =IFERROR(G75*3412.96,"0.0") -> 0
B76: Pollutant | C76: Electricity Emissions Displaced | D76: Electricity Emissions Displaced | E76: Electricity Emissions Displaced | F76: Electricity Emissions Displaced | G76: Electricity Emissions Displaced | H76: Electricity Emissions Displaced
C77: g/mmBtu | D77: g/mmBtu * | E77: Mol Feedstock (g/gal) | F77: Juice Feedstock (g/gal) | G77: Mol Feedstock (gCO2e/gal) | H77: Juice Feedstock (gCO2e/gal)
B78: VOC | C78: =J146 -> 8.714369321 | D78: =C78 -> 8.714369321 | E78: =D78*H$73/10^6 -> 0 | F78: =IFERROR(D78*H$74/10^6,0) -> 0 | G78: =E78*3.12 -> 0 | H78: =F78*K10 -> 0
B79: CO | C79: =J147 -> 51.09511428 | D79: =C79 -> 51.09511428 | E79: =D79*H$73/10^6 -> 0 | F79: =IFERROR(D79*H$74/10^6,0) -> 0 | G79: =E79*1.57 -> 0 | H79: =F79*K11 -> 0
B80: CH4 | C80: =J152 -> 136.3764452 | D80: 136.3764452 | E80: =D80*H$73/10^6 -> 0 | F80: =IFERROR(D80*H$74/10^6,0) -> 0 | G80: =E80*25 -> 0 | H80: =F80*25 -> 0
B81: N2O | C81: =J153 -> 2.917434514 | D81: 2.917434514 | E81: =D81*H$73/10^6 -> 0 | F81: =IFERROR(D81*H$74/10^6,0) -> 0 | G81: =E81*298 -> 0 | H81: =F81*298 -> 0
B82: CO2 | C82: =J154 -> 51929.38346 | D82: 51929.38346 | E82: =D82*H$73/10^6 -> 0 | F82: =IFERROR(D82*H$74/10^6,0) -> 0 | G82: =E82 -> 0 | H82: =F82 -> 0
F83: gCO2e/gal | G83: =SUM(G78:G82) -> 0 | H83: =SUM(H78:H82) -> 0
F84: gCO2e/MJ | G84: =G83/(76330*1055.06/10^6) -> 0 | H84: =H83/(76330*1055.06/10^6) -> 0
F85: gCO2e/kWh | G85: =IFERROR(G83/G73,0) -> 0 | H85: =IFERROR(H83/G74,0) -> 0
A86: VII. | B86: Ethanol Transportation and Distribution
C87: Ethanol produced in Brazil, and used in U.S.
B88: Distance Transported (mi) | C88: Pipeline | D88: Rail | E88: Truck | F88: Ocean Tanker | G88: Barge | H88: Pipeline | I88: Rail | J88: Truck | K88: Truck
C89: ='Site-Specific Inputs'!C$31/1.609 -> 0 | D89: 0 | E89: ='Site-Specific Inputs'!C$30/1.609 -> 0 | F89: ='Site-Specific Inputs'!C$33/1.609 -> 0 | J89: ='Site-Specific Inputs'!C34 -> 40 | K89: ='Site-Specific Inputs'!C35 -> 50
B90: Pollutant | C90: Total Emissions: grams/mmBtu fuel transported | L90: Total Ethanol T&D (g / mmBtu) | M90: gCO2e/mmbtu | O90: Total Ethanol T&D | Q90: Total Ethanol T&D
B91: VOC | C91: =$C$89*C102 -> 0 | D91: =$D$89*D102 -> 0 | E91: =$E$89*E102 -> 0 | F91: =$F$89*F102 -> 0 | J91: =$J$89*J102 -> 0.07786769035 | K91: =$K$89*K102 -> 0.09733461294 | L91: =SUM(C91:K91) -> 0.1752023033 | M91: =L91*K$10 -> 0.5460471786 | O91: =L91*K10/Btu2J -> 0.0005175528656 | P91: =O91 -> 0.0005175528656 | Q91: =IF('Site-Specific Inputs'!R$33=0%,"-",M97) -> - | R91: =IF('Site-Specific Inputs'!AA33=0,"-",IF('Site-Specific Inputs'!R33<100%,SUM('EF Tables'!P91:P95),0)) -> -
B92: CO | C92: =$C$89*C103 -> 0 | D92: =$D$89*D103 -> 0 | E92: =$E$89*E103 -> 0 | F92: =$F$89*F103 -> 0 | J92: =$J$89*J103 -> 0.2703215196 | K92: =$K$89*K103 -> 0.3379018996 | L92: =SUM(C92:K92) -> 0.6082234192 | M92: =L92*K$11 -> 0.9557796587 | O92: =L92*K11/Btu2J -> 0.000905904326 | P92: =O92 -> 0.000905904326
B93: CH4 | C93: =$C$89*C104 -> 0 | D93: =$D$89*D104 -> 0 | E93: =$E$89*E104 -> 0 | F93: =$F$89*F104 -> 0 | J93: =$J$89*J104 -> 0.4874094478 | K93: =$K$89*K104 -> 0.6092618097 | L93: =SUM(C93:K93) -> 1.096671257 | M93: =L93*25 -> 27.41678144 | O93: =L93*K12/Btu2J -> 0.02598609489 | P93: =O93 -> 0.02598609489
B94: N2O | C94: =$C$89*C105 -> 0 | D94: =$D$89*D105 -> 0 | E94: =$E$89*E105 -> 0 | F94: =$F$89*F105 -> 0 | J94: =$J$89*J105 -> 0.001099501336 | K94: =$K$89*K105 -> 0.00137437667 | L94: =SUM(C94:K94) -> 0.002473878006 | M94: =L94*298 -> 0.7372156459 | O94: =L94*K13/Btu2J -> 0.0006987456123 | P94: =O94 -> 0.0006987456123
B95: CO2 | C95: =$C$89*C106 -> 0 | D95: =$D$89*D106 -> 0 | E95: =$E$89*E106 -> 0 | F95: =$F$89*F106 -> 0 | J95: =$J$89*J106 -> 198.984499 | K95: =$K$89*K106 -> 248.7306237 | L95: =SUM(C95:K95) -> 447.7151227 | M95: =L95 -> 447.7151227 | O95: =L95/Btu2J -> 0.4243520593 | P95: =O95 -> 0.4243520593
F96: (incl back haul) | M96: =SUM(M91:M95) -> 477.3709466 | N96: gCO2e/mmbtu | O96: =SUM(O91:O95) -> 0.452460357 | P96: =SUM(P91:P95) -> 0.452460357
M97: =M96/1055.06 -> 0.4524585773 | N97: gCO2e/MJ
M98: =M96*76330/(10^6) -> 36.43772435 | N98: gCO2e/gal
B99: Total Emissions: grams/mmBtu fuel transported
B100: Mode: | C100: Pipeline | D100: Rail | E100: Truck | F100: Ocean Tanker | J100: Truck | K100: Truck
B101: Emissions Factor | C101: per mile | D101: per mile | E101: per mile | F101: per mile | J101: per mile | K101: per mile
B102: VOC | C102: 0.0001158390055 | D102: 0.0008080266502 | E102: 0.00194647965 | F102: 0.0009874721369 | J102: 0.001946692259 | K102: 0.001946692259
B103: CO | C103: 0.0007423662589 | D103: 0.002648706692 | E103: 0.006756475444 | F103: 0.002235606471 | J103: 0.006758037991 | K103: 0.006758037991
B104: CH4 | C104: 0.001676020263 | D104: 0.002376199985 | E104: 0.01218042672 | F104: 0.001963471709 | J104: 0.01218523619 | K104: 0.01218523619
B105: N2O | C105: 4.435033016e-05 | D105: 2.967682378e-05 | E105: 2.748735779e-05 | F105: 2.536667604e-05 | J105: 2.74875334e-05 | K105: 2.74875334e-05
B106: CO2 | C106: 0.6236222376 | D106: 1.077277591 | E106: 4.973703643 | F106: 1.078051467 | J106: 4.974612474 | K106: 4.974612474
A109: VIII. | B109: Denatured Ethanol (D-EtOH) Calculator
C111: Molasses-to-Ethanol | D111: Cane Juice-to-Ethanol
B112: Volume % Ethanol in D-EtOH | C112: =1-C113 -> 0.975 | D112: =1-D113 -> 0.975 | E112: v/v EtOH/D-EtOH | F112: Anhyd EtOH | G112: =G113/D112 -> 0 | H112: Total Denatured Ethanol | J112: LCFS Reference CI of CARBOB
B113: Volume % of Denaturant (CARBOB and "Other") in D-EtOH | C113: 0.025 | D113: 0.025 | E113: v/v CARBOB/D-EtOH | G113: ='Site-Specific Inputs'!V33*(1-'Site-Specific Inputs'!U33)*'OR-GREET4.0'!C102 -> 0 | H113: Anhydrous Ethanol Produced
B114: Energy % Denaturant in D-EtOH | C114: =G115 ->  | D114: =G115 ->  | E114: MJ/MJ CARBOB/D-EtOH | G114: =G112-G113 -> 0 | H114: Denaturant Added | J114: CARBOB CI | K114: ='OR-GREET4.0'!H$75 -> 97.91
B115: CARBOB CI * | C115: =$K$114-(5.87493397896155*$K$12+3.21914073294522*$K$13)/1055.06 -> 96.86155035 | D115: =$K$114-(5.87493397896155*$K$12+3.21914073294522*$K$13)/1055.06 -> 96.86155035 | E115: g CO2e/MJ CARBOB | G115: =IF(G114>0,G114*'OR-GREET4.0'!D75/('OR-GREET4.0'!D75*G114+'EF Tables'!G113*'OR-GREET4.0'!D77),"") ->  | H115: Energy % Denaturant in D-EtOH
B116: Denaturant, g/MJ | C116: =IFERROR((1-$C$114)*(C122+C123)+$C$114*$C$115-(C122+C123),0) -> 0 | D116: =IFERROR((1-$D$114)*(D122+D123)+$D$114*$D$115-(D122+D123),0) -> 0 | E116: g CO2e/MJ | I116: Changing these values will result in an incorrect CARFG and Denaturant calculation
B117: * Without Tailpipe N2O and CH4 emissions impact.
B120: CI Summary | C120: (gCO2e/MJ)
A121: IX. | C121: Molasses | D121: Cane Juice
B122: CI (feedstock+fuel) | C122: =SUM(Q32:Q95) -> 0 | D122: =SUM(R32:R95) -> 0
B123: iLUC | C123: 11.8 | D123: 11.8
B124: Denaturant | C124: =C116 -> 0 | D124: =D116 -> 0
B125: Total CI (g/MJ) | C125: =SUM(C122:C124) -> 11.8 | D125: =SUM(D122:D124) -> 11.8
B127: 3) Electric Transmission and Distribution Loss | D127: 0.081 | F127: 10) Calculation of Fuel-Cycle Energy Use, Water Consumption, and Emissions of other regional generation mixes
G128: Brazil | J128: Brazil
F129: Type | G129: Average | J129: Average
B130: 2.2) Electricity Generation Mixes, Combustion Technolgy Shares and Power Plant Energy Conversion Efficiencies for GREET Calculation | F130: Year | G130: 2014 | J130: CA-GREETv2.0
C131: Feedstock Production: Brazillian Mix | D131: Generation Mix for Stationary Applications | F131: Petroleum | G131: =D132 -> 0.0568 | J131: 0.0337
B132: Residual Oil-Fired Power Plants | D132: 0.0568 | F132: NG | G132: =D136 -> 0.1298 | J132: 0.0789
B133: Boiler | F133: Coal | G133: =D141 -> 0.0432 | J133: 0.0187
B134: Internal Combustion Engine | F134: Biomass | G134: =D144 -> 0.0738 | J134: 0.0698
B135: Gas Turbine | F135: Nuclear | G135: =D147 -> 0.0248 | J135: 0.026
B136: Natural Gas-Fired Power Plants | D136: 0.1298 | F136: Hydro | G136: =D148-G137 -> 0.6633 | J136: 0.7645
B137: Boiler | F137: Others | G137: 0.0083 | J137: 0.0083
B138: Simple-cycle gas turbine | F138: T&D Loss | G138: 0.081 | J138: 0.081
B139: Combined-cycle gas turbine | F139: Btu or Gallons or Grams per mmBtu of Electricity Available at User Sites*
B140: Internal Combustion Engine | F140: Total energy | G140: 1717630.969
B141: Coal-Fired Power Plants | D141: 0.0432 | F141: Fossil fuels | G141: 695566.737
B142: Boiler | F142: Coal | G142: 135973.2615
B143: IGCC | F143: Natural gas | G143: 356645.0468
B144: Biomass Power Plants | D144: 0.0738 | F144: Petroleum | G144: 202948.4286
B145: Boiler | F145: Water consumption | G145: 946.2397455 | H145: Feedstock | I145: Fuel | J145: Total
B146: IGCC | F146: VOC | H146: 5.634073845 | I146: 3.080295476 | J146: =I146+H146 -> 8.714369321
B147: Nuclear Power Plants | D147: 0.0248 | F147: CO | H147: 14.21777447 | I147: 36.87733981 | J147: =I147+H147 -> 51.09511428
B148: Other Power Plants (hydro, wind, geothermal, etc.) | D148: 0.6716
B149: Hydroelectric
B150: Geothermal
B151: Wind
B152: Solar PV | F152: CH4 | H152: 132.1734966 | I152: 4.20294858 | J152: =I152+H152 -> 136.3764452
B153: Others (Biogenic Waste, Pumped Storage, etc.) | F153: N2O | H153: 0.4892193549 | I153: 2.428215159 | J153: =I153+H153 -> 2.917434514
C154: Sum: | D154: =SUM(D132:D153) -> 1 | F154: CO2 | H154: 4477.182256 | I154: 47452.2012 | J154: =I154+H154 -> 51929.38346
F155: * From CA-GREET3.0 ("Electric" #9) Fuel-Cycle Energy Use, Water Consumption, and Emissions of Electric Generation: Btu or Gallons or Grams per mmBtu of Electricity Available at User Sites (wall outlets))
B158: Agricultural Inputs for 80% Mechanization* | D158: 995.8 | E158: N Fertilizer based upon 0.53% (N in straw Content) | I158: Agricultural Inputs for 65% Mechanization | K158: =800+318.82 -> 1118.82 | L158: N Fertilizer based upon 0.53% (N in straw Content)
B159: Sugarcane Farming, Fertilizer, and Herbicide/Insecticide Use (grams/tonne cane)* | I159: Sugarcane Farming, Fertilizer, and Herbicide/Insecticide Use (grams/tonne cane)*
B160: Nitrogen** | C160: P2O5 | D160: K2O | E160: CaCO3 | F160: Herbicide | G160: Insecticide | H160: Pollutant | I160: Nitrogen** | J160: P2O5 | K160: K2O | L160: CaCO3 | M160: Herbicide | N160: Insecticide
B161: 995.8 | C161: 317.3264 | D161: 1371.28 | E161: 5200 | F161: 45 | G161: 2.5 | I161: 1118.82 | J161: 311.0789 | K161: 1237.405 | L161: 5200 | M161: 45 | N161: 2.5
B162: 6.527498733 | C162: 0.08455971678 | D162: 0.1290792996 | E162: 0.0197669877 | F162: 0.09079378648 | G162: 0.006103890925 | H162: VOC | I162: 7.333651712 | J162: 0.08289491099 | K162: 0.1164775762 | L162: 0.0197669877 | M162: 0.09079378648 | N162: 0.006103890925
B163: 7.426837014 | C163: 0.2920353783 | D163: 0.6598283308 | E163: 0.06325330669 | F163: 0.6041615817 | G163: 0.05641143824 | H163: CO | I163: 8.344059219 | J163: 0.2862858062 | K163: 0.5954107663 | L163: 0.06325330669 | M163: 0.6041615817 | N163: 0.05641143824
B164: 30.27172475 | C164: 0.500695057 | D164: 1.279146505 | E164: 0.1910432068 | F164: 1.600308464 | G164: 0.1071699861 | H164: CH4 | I164: 31.89850297 | J164: 0.4908374077 | K164: 1.154266292 | L164: 0.1910432068 | M164: 1.600308464 | N164: 0.1071699861
B165: 4.035781674 | C165: 0.005250936657 | D165: 0.01361686334 | E165: 0.0006969499389 | F165: 0.01579004751 | G165: 0.0009098209448 | H165: N2O | I165: 4.533535545 | J165: 0.005147556583 | K165: 0.01228747942 | L165: 0.0006969499389 | M165: 0.01579004751 | N165: 0.0009098209448
B166: 2725.601607 | C166: 183.71762 | D166: 483.868374 | E166: 47.37950203 | F166: 664.7850406 | G166: 42.1353311 | H166: CO2 | I166: 3062.216281 | J166: 180.1006003 | K166: 436.6293867 | L166: 47.37950203 | M166: 664.7850406 | N166: 42.1353311
B167: 766.791872 | C167: CO2 from urea use | D167: 1125.696 | E167: CO2 from CaCO3 use | I167: 861.491477 | J167: CO2 from urea use | K167: 1125.696 | L167: CO2 from CaCO3 use
B168: 38.02211146 | C168: NO from N fertilizer and above/below ground biomass | I168: 40.90486096 | J168: NO from N fertilizer and above/below ground biomass
B169: 44.80099546 | C169: N2O from N fertilizer and above/below ground biomass | I169: 48.27232321 | J169: N2O from N fertilizer and above/below ground biomass
B170: * Per CA-GREET3.0 | I170: * Per CA-GREET3.0
B171: ** Nitrogen amount reflects 800 g/m.t. cane applied + 195.83 g / m.t. sugarcane for Nitrogen lost in burnt straw at 80% mechanization level. | I171: ** Nitrogen amount reflects 800 g/m.t. cane applied + 318.82 g / m.t. sugarcane for Nitrogen lost in burnt straw at 65% mechanization level.
B172: The supplemental Nitrogen needed also reflects 75% fraction of sugarcane straw left in unburnt fields (25% Harvested). | I172: The supplemental Nitrogen needed also reflects 75% fraction of sugarcane straw left in unburnt fields (25% Harvested).
B175: Options for Mechanized Harvesting | E175: Options for Port of Export | H175: Options for Ocean Transport Route to California | J175: Choices for Field 1.6 (Provisional Pathway)?:
B176: Standard for Sao Paulo State | C176: Standard for Non-Sao Paulo States | E176: Port of Santos (Sao Paulo) | H176: Via Panama Canal | J176: Yes
B177: 0.8 | C177: 0.65 | E177: Port of Ilha D'Agua (Rio de Janeiro) | H177: Via Cape Horn | J177: No
H178: Via Strait of Magellan
B179: Return of Nitrogen to Soil via Filtercake and Vinasse Application
C180: Filtercake | D180: Vinasse
B181: Application (kg dry filtercake or L vinasse/MT sugarcane) | C181: =5*30%/6/87.1*1000 -> 2.870264064 | D181: 570
B182: N content (g N/kg dry filtercake or L vinasse) | C182: 12.5 | D182: 0.36
B183: N in soil from filtercake and vinasse (g N/MT sugarcane) | C183: 35.8783008 | D183: 205.2
B184: Moisture content (wt%) | C184: 0.65
B185: See CA-GREET3.0, "EtOH" Worksheet (Row 111-115).

Sheet EF General (hidden)
A2: Generalized Emissions Factors (EF General) for CI Determination (HIDE SHEET).
A5: Factor 1 - Sugarcane Farming Impacts | G5: gCO2e/MJ
A6: Sugarcane Farming | G6: =IF('Site-Specific Inputs'!S32=0,'Calculated Parameters'!G93,'Calculated Parameters'!M93) -> -
A7: Fertilizers | G7: =IF('Site-Specific Inputs'!S$32=0,'Calculated Parameters'!G94,'Calculated Parameters'!M94) -> 0
A8: N2O in Soil | G8: =IF('Site-Specific Inputs'!S$32=0,'Calculated Parameters'!G95,'Calculated Parameters'!M95) -> -
F9: Total: | G9: =SUM(G6:G8) -> 0 | H9: gCO2e
H10: =10^6 -> 1000000 | I10: J | J10: Btu
H11: 1055.06 | I11: J | J11: 76330 | K11: Btu
K12: gal
J14: For Molasses Feedstock = Sugarcane Farming Impacts (gCO2e/gal) x Yield of Ethanol (gal/m.t. cane) / Mass Allocation Ratio
A15: Factor 1 - Sugarcane Farming Impacts | F15: = | G15: =G9*H11*J11/H10 -> 0 | H15: gCO2e | J15: =G15 -> 0 | K15: =H15 -> gCO2e | L15: ='Calculated Parameters'!F$23 -> 0 | M15: gal | N15: = | O15: =J15*L15 -> 0 | P15: gCO2e | Q15: ='Site-Specific Inputs'!J$33 -> 0 | R15: m.t. cane | S15: ='Site-Specific Inputs'!R33 -> 0 | T15: Juice Share
H16: gal EtOH | K16: =H16 -> gal EtOH | M16: mt cane | P16: mt cane
I18: = | J18: =O15*Q15*S15 -> 0 | K18: gCO2e
A21: Factor 2 - Sugarcane Straw Burning | J21: For Sugarcane Juice Feedstock = Sugarcane Farming Impacts (gCO2e/gal) x Yield of Ethanol
J22: =G15 -> 0 | K22: gCO2e | L22: ='Calculated Parameters'!G$23 -> 0 | M22: gal | N22: = | O22: =J22*L22 -> 0 | P22: gCO2e | Q22: ='Site-Specific Inputs'!J$33 -> 0 | R22: m.t. cane
C23: g/tonne cane | D23: gCO2e/mt cane | K23: gal EtOH | M23: mt cane | P23: mt cane | S23: =1-S15 -> 1 | T23: Juice Share
A24: VOC | C24: 1499.4 | D24: =C24*'EF Tables'!K$10 -> 4673.13
A25: CO | C25: 19706.4 | D25: =C25*'EF Tables'!K$11 -> 30967.2 | I25: = | J25: =O22*Q22*S23 -> 0 | K25: gCO2e
A26: NOx
A27: PM10
A28: PM2.5 | I28: = | J28: =J25+J18 -> 0 | K28: gCO2e | N28: cane for juice | O28: cane for mol
A29: SOx | L29: ='Site-Specific Inputs'!J33 -> 0 | M29: mt cane | N29: =1-'Site-Specific Inputs'!R33 -> 1 | O29: ='Site-Specific Inputs'!S32*'Calculated Parameters'!G30 -> 0
A30: BC
A31: OC | I31: = | J31: =IFERROR(J28/(L29*(N29+O29)),0) -> 0 | K31: gCO2e/m.t. cane
A32: CH4 | C32: 578.34 | D32: =C32*25 -> 14458.5
A33: N2O | C33: 14.994 | D33: =C33*298 -> 4468.212 | G33: Net Sugarcane Straw Burning Impacts (Juice Feedstock) = (gCO2e/m.t. cane) x (1 - Mech %)
A34: CO2 | C34: 355469.235 | D34: =C34 -> 355469.235 | G34: Net Sugarcane Straw Burning Impacts (Juice Feedstock) = 17,313.1 x (1 - Mech %) gCO2e/m.t. cane
A35: Misc. CO2 | C35: -392700 | D35: =C35 -> -392700
G36: Net Sugarcane Straw Burning Impacts (Mol Feedstock) = (gCO2e/m.t. cane) x (1 - Mech %) x M.A.R.
D37: =SUM(D24:D35) -> 17336.277 | E37: gCO2e/mt cane | G37: Net Sugarcane Straw Burning Impacts (Mol Feedstock) = 17,313.1 x (1 - Mech %) / M.A.R. gCO2e/m.t. cane
A39: Factor 3 - Sugarcane & Filtercake Transport
B41: ='Site-Specific Inputs'!$J$34 -> 0 | C41: "X" miles Cane transport to Mill | E41: 2.870264064 | F41: Yield kg dry filtercake/MT sugarcane
D42: 2 miles cane | E42: 2 miles Filtercake | F42: "X" Miles Filtercake
B43: hddt | C43: mddt | D43: mddt | E43: hddt | F43: hddt
B44: g/tonne-mile | C44: g/tonne-mile | D44: g/tonne cane | E44: g/tonne cane | F44: g/tonne-mile
A45: VOC | B45: ='EF Tables'!F21 -> 0.08233324758 | C45: ='EF Tables'!F9/2 -> 0.1482584441 | D45: =2*C45 -> 0.2965168882 | E45: =2*B45*(E$41/1000) -> 0.0004726363236 | F45: =B45 -> 0.08233324758
A46: CO | B46: ='EF Tables'!F22 -> 0.286312093 | C46: ='EF Tables'!F10/2 -> 0.5152821347 | D46: =2*C46 -> 1.030564269 | E46: =2*B46*(E$41/1000) -> 0.001643582623 | F46: =B46 -> 0.286312093
A47: CH4 | B47: ='EF Tables'!F23 -> 0.5111547631 | C47: ='EF Tables'!F11/2 -> 0.9226419825 | D47: 1.845283965 | E47: 0.002934298295 | F47: =B47 -> 0.5111547631
A48: N2O | B48: ='EF Tables'!F24 -> 0.001155397924 | C48: ='EF Tables'!F12/2 -> 0.002084481666 | D48: 0.004168963331 | E48: 6.632594281e-06 | F48: =B48 -> 0.001155397924
A49: CO2 | B49: ='EF Tables'!F25 -> 208.3503137 | C49: ='EF Tables'!F13/2 -> 376.2788391 | D49: 752.5576782 | E49: 1.196040837 | F49: =B49 -> 208.3503137
A50: CO2e | B50: =B45*3.12+B46*1.57+B47*25+B48*298+B49 -> 222.1798811 | C50: =C45*3.12+C46*1.57+C47*25+C48*298+C49 -> 401.2376235 | D50: =D45*3.12+D46*1.57+D47*25+D48*298+D49 -> 802.475247 | E50: =E45*3.12+E46*1.57+E47*25+E48*298+E49 -> 1.275429857 | F50: =F45*3.12+F46*1.57+F47*25+F48*298+F49 -> 222.1798811
A52: Sugarcane & Filtercake Transport | C52: = ("X" miles * 307.47) + 665.78 | F52: =(B50*B41)+(E$41/1000)*(B41*B50)+D50+E50 -> 803.7506769 | G52: gCO2/tonne cane
A54: Sugarcane & Filtercake Transport | C54: = ("X" miles * 307.47) + 665.78 (Juice Feedstock)
A55: Sugarcane & Filtercake Transport | C55: = (("X" miles * 307.47) + 665.78 ) * M.A.R. (Molasses Feedstock)
A58: Factor 4 - Electricity Co-Product Credit
A60: For Cane Juice Feedstock | M60: Conversely,
A61: ='EF Tables'!H84 -> 0 | B61: gCO2e/MJ Ethanol | D61: = | E61: =ABS(A61) -> 0 | F61: gCO2e
F62: 1000000 | G62: J | H62: Btu | I62: 1 gal | J62: 1 m.t.cane | M62: =E61*F63*I63/F62 -> 0 | N62: g CO2e | O62: ='Calculated Parameters'!G25 -> 0 | P62: gal
F63: 1055.06 | G63: J | H63: Btu | I63: 76330 | J63: ='Calculated Parameters'!$G$23 -> 0 | K63: gal | N63: gal | P63: yr
M64: =M62*O62 -> 0 | N64: g CO2e | O64: allocated to juice-to-ethanol
N65: yr
A66: Electricity Co-Product Credit: | D66: = | E66: =-E61*F63*I63*J63/F62 -> 0 | F66: gCO2e | G66: for | H66: ='Calculated Parameters'!K$34 -> 0 | I66: kWh | J66: Electricity Displaced
F67: m.t. cane | I67: gal | M67: =IFERROR((M64/(1-'Site-Specific Inputs'!R$33))-M64,0) -> 0 | N67: g CO2e | O67: allocated to sugar production
N68: yr
M69: =M67*'Calculated Parameters'!G30 -> 0
A70: For Molasses Feedstock | M70: =M67-M69 -> 0
A71: ='EF Tables'!G84 -> 0 | B71: gCO2e/MJ Ethanol | D71: = | E71: =ABS(A71) -> 0 | F71: gCO2e | M71: =M70+M69+M64 -> 0 | N71: g CO2e | O71: alloated to all production
F72: 1000000 | G72: J | H72: Btu | I72: 1 gal | J72: 1 m.t.cane | N72: yr
F73: 1055.06 | G73: J | H73: Btu | I73: 76330 | J73: ='Calculated Parameters'!F$23 -> 0 | K73: gal | M73: ='Calculated Parameters'!I33 -> 0 | N73: KWh per year
G75: 0
A76: Electricity Co-Product Credit: | D76: = | E76: =-E71*F73*I73*J73/F72 -> 0 | F76: gCO2e | G76: for | H76: ='Calculated Parameters'!K$33 -> 0 | I76: kWh | J76: Electricity Displaced
F77: m.t.cane | I77: gal
A82: Factor 5 - Sugar Production Emissions for Molasses Feedstock
A83: Sugar Production Emissions | F83: ='EF Tables'!C45 -> 4078.483245 | G83: gCO2e/m.t. cane
A84: Mass Allocation Ratio | F84: M.A.R.
A85: Sugar Production Emissions | E85: = 4078.5 x M.T. Cane for Sugar Production | H85: gCO2e
A86: Sugar Production Emissions Applicable to Molasses | E86: = 4078.5 x M.T. of Cane for Sugar Production x M.A.R. | H86: gCO2e
A89: Factor 6 - Ethanol Production
C90: ='Calculated Parameters'!G116+'Calculated Parameters'!G114+'Calculated Parameters'!G117+'Calculated Parameters'!G118 -> 0 | D90: gCO2e/MJ Ethanol | E90: Juice
C92: =IF('Site-Specific Inputs'!S32=0,'EF General'!C90,'Calculated Parameters'!M116+'Calculated Parameters'!M114+'Calculated Parameters'!M117+'Calculated Parameters'!M118) -> 0 | D92: gCO2e | H92: = | I92: =C92*D94*G94/D93 -> 0 | J92: gCO2e
D93: 1000000 | E93: J | F93: Btu | G93: 1 gal | J93: gal Ethanol
D94: 1055.06 | E94: J | F94: Btu | G94: 76330
B97: For Molasses Feedstock
B98: = | C98: =I92 -> 0 | D98: gCO2e | E98: ='Calculated Parameters'!F23 -> 0 | F98: gal Ethanol | G98: = | H98: =I92 -> 0 | I98: gCO2e | J98: =E98 -> 0 | K98: gal Ethanol | L98: = | M98: =IFERROR(H98*J98/J99,0) -> 0 | N98: gCO2e
D99: gal Ethanol | E99: M.A.R | F99: m.t. cane | I99: gal Ethanol | J99: ='Calculated Parameters'!G30 -> 0 | K99: m.t. cane | N99: m.t. cane
B101: For Cane Juice Feedstock
B102: = | C102: =I92 -> 0 | D102: gCO2e | E102: ='Calculated Parameters'!G23 -> 0 | F102: gal Ethanol | G102: = | H102: =C102 -> 0 | I102: gCO2e | J102: =E102 -> 0 | K102: gal Ethanol | L102: = | M102: =H102*J102 -> 0 | N102: gCO2e
D103: gal Ethanol | F103: m.t. cane | I103: gal Ethanol | K103: m.t. cane | N103: m.t. cane
A106: Factor 7 - Denaturant Emissions | F106: ='EF Tables'!C124 -> 0 | G106: gCO2e | J106: ='Calculated Parameters'!F23 -> 0 | K106: gal | L106: ='Site-Specific Inputs'!J$33 -> 0 | M106: mt cane | N106: ='Calculated Parameters'!G$30 -> 0 | O106: ='Site-Specific Inputs'!R$33 -> 0
A107: Denaturant Emissions Impact = 3.30 - CI (feedstk+fuel) x 0.0376 | F107: 1000000 | G107: J | H107: Btu | I107: gal | K107: m.t. cane | M107: yr
F108: 1055.06 | G108: J | H108: Btu | I108: 76330
F110: =F106*J106*L106*N106*O106*1055.06*76330/1000000 -> 0 | G110: gCO2e
G111: yr
D113: feedstock | E113: gal | F113: MJ | G113: CI | H113: gCO2e | I113: EF gCO2e/gal | K113: Demo CI
D115: molasses | E115: ='Calculated Parameters'!F25 -> 0 | F115: =E115*76330*1055.06/10^6 -> 0 | G115: ='EF Tables'!C124 -> 0 | H115: =G115*F115 -> 0 | I115: =IFERROR(H115/E115,0) -> 0 | J115: =IFERROR(I115/I117,0) -> 0 | K115: =IFERROR(K117*J115,0) -> 0
D116: juice | E116: ='Calculated Parameters'!G25 -> 0 | F116: =E116*76330*1055.06/10^6 -> 0 | G116: ='EF Tables'!D124 -> 0 | H116: =G116*F116 -> 0 | I116: =IFERROR(H116/E116,0) -> 0 | J116: =IFERROR(I116/I117,0) -> 0 | K116: =IFERROR(K117*J116,0) -> 0
E117: =SUM(E115:E116) -> 0 | F117: =SUM(F115:F116) -> 0 | H117: =SUM(H115:H116) -> 0 | I117: =IFERROR(H117/E117,0) -> 0 | J117: EF | K117: =I117/(76330*1055.06/10^6) -> 0
I118: =IFERROR((I115*E115+I116*E116)/E117,0) -> 0 | J118: weighted avg
A121: Factor 8 - ILUC
A123: ILUC | B123: =11.8 -> 11.8 | C123: gCO2e
C124: MJ
A126: ILUC = | B126: =B123 -> 11.8 | C126: gCO2e | G126: = | H126: =B126*E128*C128/C127 -> 950.2862116 | I126: gCO2e | J126: =H126*'Calculated Parameters'!$F$25 -> 0 | K126: gCO2e mol feedstock
C127: 1000000 | D127: J | E127: Btu | F127: 1 gal EtOH | I127: gal Ethanol | J127: =H126*'Calculated Parameters'!$G$25 -> 0 | K127: gCO2e juice feedstock
C128: 1055.06 | D128: J | E128: 76330 | F128: Btu | J128: =SUM(J126:J127) -> 0 | K128: gCO2e
A130: ILUC juice | B130: = | C130: =H126 -> 950.2862116 | D130: gCO2e | E130: ='Calculated Parameters'!G23 -> 0 | F130: gal Ethanol
D131: gal Ethanol | F131: m.t.cane | G131: = | H131: =C130*E130 -> 0 | I131: gCO2e | J131: =H131*'Site-Specific Inputs'!J$33*(1-'Calculated Parameters'!F$70)*(1-'Site-Specific Inputs'!R$33) -> 0 | K131: gCO2e
I132: m.t.cane
A135: ILUC mol | B135: = | C135: =H126 -> 950.2862116 | D135: gCO2e | E135: ='Calculated Parameters'!F23 -> 0 | F135: gal Ethanol
D136: gal Ethanol | F136: m.t.cane | G136: = | H136: =C135*E135 -> 0 | I136: gCO2e | J136: =H$136*'Site-Specific Inputs'!J$33*'Site-Specific Inputs'!R$33 -> 0 | K136: gCO2e
I137: m.t.cane
A142: Factor 9 - Ethanol Transport & Distribution
A144: For Cane Juice Feedstock | C144: ='Calculated Parameters'!G$119 -> 0 | D144: gCO2
D145: MJ
B147: = | C147: =C144 -> 0 | D147: gCO2 | G147: = | H147: =C147*F149*C149/C148 -> 0 | I147: gCO2e | J147: ='Calculated Parameters'!G$23 -> 0 | K147: gal | L147: = | M147: =J147*H147 -> 0 | N147: gCO2e
C148: 1000000 | D148: J | E148: Btu | F148: gal | I148: gal EtOH | K148: mt cane | N148: mt cane
C149: 1055.06 | D149: J | E149: Btu | F149: 76330
A151: For Cane Molasses Feedstock | C151: ='Calculated Parameters'!M119 -> 0 | D151: gCO2
D152: MJ
B154: = | C154: =C151 -> 0 | D154: gCO2 | G154: = | H154: =C154*F156*C156/C155 -> 0 | I154: gCO2e | J154: ='Calculated Parameters'!F$23 -> 0 | K154: gal | L154: = | M154: =J154*H154 -> 0 | N154: gCO2e
C155: 1000000 | D155: J | E155: Btu | F155: gal | I155: gal EtOH | K155: mt cane | N155: mt cane
C156: 1055.06 | D156: J | E156: Btu | F156: 76330
A161: VII. | B161: EF for Ethanol Transportation and Distribution | K161: in Brazil, miles | L161: in California, miles
B162: Mode & Distance Transported (mi) | C162: Pipeline: | D162: ='Site-Specific Inputs'!C$31/1.609 -> 0 | E162: Rail: | F162: 0 | G162: Ocean Tanker: | H162: ='Site-Specific Inputs'!C$33/1.609 -> 0 | I162: Total Truck Transport in Brazil: | J162: Total Truck Transport in California: | K162: ='Site-Specific Inputs'!C30/1.609 -> 0 | L162: ='Site-Specific Inputs'!C34+'Site-Specific Inputs'!C35 -> 90
B163: Pollutant | C163: g per mmBtu-mile | D163: gCO2e per mmBtu-mi | E163: g per mmBtu-mile | F163: gCO2e per mmBtu-mi | G163: g per mmBtu-mile | H163: gCO2e per mmBtu-mi | I163: g per mmBtu-mile | J163: g per mmBtu-mile | K163: gCO2e/mmBtu-mi | L163: gCO2e/mmBtu-mi
B164: VOC | C164: ='EF Tables'!C102 -> 0.0001158390055 | D164: =C164*'EF Tables'!K$10 -> 0.0003610315672 | E164: ='EF Tables'!D102 -> 0.0008080266502 | F164: =E164*'EF Tables'!K$10 -> 0.002518349727 | G164: ='EF Tables'!F102 -> 0.0009874721369 | H164: =G164*'EF Tables'!K$10 -> 0.003077621493 | I164: ='EF Tables'!E102 -> 0.00194647965 | J164: ='EF Tables'!K102 -> 0.001946692259 | K164: =I164*'EF Tables'!K$10 -> 0.006066528243 | L164: =J164*'EF Tables'!K$10 -> 0.006067190873
B165: CO | C165: ='EF Tables'!C103 -> 0.0007423662589 | D165: =C165*'EF Tables'!K$11 -> 0.00116657555 | E165: ='EF Tables'!D103 -> 0.002648706692 | F165: =E165*'EF Tables'!K$11 -> 0.004162253373 | G165: ='EF Tables'!F103 -> 0.002235606471 | H165: =G165*'EF Tables'!K$11 -> 0.003513095883 | I165: ='EF Tables'!E103 -> 0.006756475444 | J165: ='EF Tables'!K103 -> 0.006758037991 | K165: =I165*'EF Tables'!K$11 -> 0.01061731855 | L165: =J165*'EF Tables'!K$11 -> 0.01061977399
B166: CH4 | C166: ='EF Tables'!C104 -> 0.001676020263 | D166: =C166*25 -> 0.04190050657 | E166: ='EF Tables'!D104 -> 0.002376199985 | F166: =E166*25 -> 0.05940499963 | G166: ='EF Tables'!F104 -> 0.001963471709 | H166: =G166*25 -> 0.04908679272 | I166: ='EF Tables'!E104 -> 0.01218042672 | J166: ='EF Tables'!K104 -> 0.01218523619 | K166: =I166*25 -> 0.3045106679 | L166: =J166*25 -> 0.3046309049
B167: N2O | C167: ='EF Tables'!C105 -> 4.435033016e-05 | D167: =C167*298 -> 0.01321639839 | E167: ='EF Tables'!D105 -> 2.967682378e-05 | F167: =E167*298 -> 0.008843693486 | G167: ='EF Tables'!F105 -> 2.536667604e-05 | H167: =G167*298 -> 0.007559269461 | I167: ='EF Tables'!E105 -> 2.748735779e-05 | J167: ='EF Tables'!K105 -> 2.74875334e-05 | K167: =I167*298 -> 0.008191232622 | L167: =J167*298 -> 0.008191284954
B168: CO2 | C168: ='EF Tables'!C106 -> 0.6236222376 | D168: =C168 -> 0.6236222376 | E168: ='EF Tables'!D106 -> 1.077277591 | F168: =E168 -> 1.077277591 | G168: ='EF Tables'!F106 -> 1.078051467 | H168: =G168 -> 1.078051467 | I168: ='EF Tables'!E106 -> 4.973703643 | J168: ='EF Tables'!K106 -> 4.974612474 | K168: =I168 -> 4.973703643 | L168: =J168 -> 4.974612474
C169: total gCO2e per mmBtu-mi | D169: =SUM(D164:D168) -> 0.6802667497 | E169: total gCO2e per mmBtu-mi | F169: =SUM(F164:F168) -> 1.152206887 | G169: total gCO2e per mmBtu-mi | H169: =SUM(H164:H168) -> 1.141288246 | I169: total gCO2e per mmBtu-mi | J169: total gCO2e per mmBtu-mi | K169: =SUM(K164:K168) -> 5.303089391 | L169: =SUM(L164:L168) -> 5.304121629
C170: gCO2e/gal-mi | D170: =D169*76330/(10^6) -> 0.05192476101 | E170: gCO2e/gal-mi | F170: =F169*76330/(10^6) -> 0.0879479517 | G170: gCO2e/gal-mi | H170: =H169*76330/(10^6) -> 0.08711453183 | I170: gCO2e/gal-mi | J170: gCO2e/gal-mi | K170: =K169*76330/(10^6) -> 0.4047848132 | L170: =L169*76330/(10^6) -> 0.4048636039
C171: gCO2e/gal | D171: =D170*D162 -> 0 | E171: gCO2e/gal | F171: =F170*F162 -> 0 | G171: gCO2e/gal | H171: =H170*H162 -> 0 | I171: gCO2e/gal | J171: gCO2e/gal | K171: =K170*K162 -> 0 | L171: =L170*L162 -> 36.43772435
C172: gCO2e/MJ | D172: =D171*10^6/(76330*1055.06) -> 0 | E172: gCO2e/MJ | F172: =F171*10^6/(76330*1055.06) -> 0 | G172: gCO2e/MJ | H172: =H171*10^6/(76330*1055.06) -> 0 | I172: gCO2e/MJ | J172: gCO2e/MJ | K172: =K171*10^6/(76330*1055.06) -> 0 | L172: =L171*10^6/(76330*1055.06) -> 0.4524585773
L173: =H172+F172+D172+K172+L172 -> 0.4524585773

Sheet Old Fuel_Specs (hidden)
B2: General References for Sugarcane-based Ethanol Pathways (HIDE)
B4: Feedstock Type | C4: Sugarcane Juice | D4: Molasses | E4: Sources
B5: Juice-to-Sugar share, % | D5: User Defined
B6: Sucrose in Sugarcane Juice (Entering Process) | D6: User Defined
B7: a. Farming Energy
B8: Total Farming Energy | C8: 95,000 Btu/tonne | E8: OR-GREET 3.0
B9: Diesel fuel | C9: 36385
B10: Gasoline | C10: 11685
B11: Natural gas | C11: 20425
B12: Liquefied petroleum gas | C12: 17860
B13: Electricity | C13: 8550
B14: b. Fertilizer Use | C14: 65% Mechanization | D14: 80% Mechanization
B15: Nitrogen | C15: 1118.82 | D15: 996 | E15: OR-GREET 3.0
B16: P2O5 | C16: 311.1 | D16: 317.3 | E16: (g / tonne)
B17: K2O | C17: 1237.4 | D17: 1371.3 | E17: (Revised per 15-day Changes; N% in Sugarcane Straw revision to 0.53%)
B18: CaCO3 | C18: 5200 | D18: 5200
B19: Herbicide | C19: 45 | D19: 45
B20: Pesticide | C20: 2.5 | D20: 2.5
B21: c. N2O in soil
B22: N in N2O as % of N in N fertilizer | C22: 0.01325 | E22: OR-GREET 3.0
B23: N in N2O as % of N in biomass | C23: 0.01225 | E23: OR-GREET 3.0
B24: d. Cane Transport
B25: Raw feedstock to collection point by MDT, mi | C25: 2 | E25: OR-GREET 3.0
B26: To Ethanol plant by HDDT mi | C26: User Defined
B27: e. Straw Burning
B28: Straw yield: dry tonne/wet tonne of sugarcane | C28: 0.2142 | E28: OR-GREET 3.0
B29: Moisture in straw | C29: 0.15 | E29: OR-GREET 3.0
B30: Burn Field, % | C30: 0.9 | E30: OR-GREET 3.0
B31: f. Mechanized Harvesting Credit
B32: Mechanized field, % | C32: Standard (Sao Paulo State) at 80%, or | E32: OR-GREET 3.0
C33: (Non-Sao Paulo State) at 65% | E33: OR-GREET 3.0
B34: g. Filter Cake T&D, miles | C34: Same as Cane Transport +2 miles.
B35: h. Sugar Production
B36: gCO2e/wet ton of cane | D36: 3700 | E36: (Gopal et al, 2009).1
B37: i. Ethanol Production
B38: Total Plant Energy (Btu/gal)
B39: Residual oil | C39: 300 | E39: OR-GREET 3.0
B40: Chemical Use, g/tonne of cane
B41: Lime | C41: 880 | E41: OR-GREET 3.0
B42: j. Fuel Distribution
B43: Distribution by HDT to blending terminal, miles | C43: 40 | E43: OR-GREET 3.0
B44: Distribution by HDT to stations, miles | C44: 50 | E44: OR-GREET 3.0
B45: k. Fuel Properties
B46: Density of EtOH (LHV), grams/gal | C46: 2988 | E46: OR-GREET 3.0
B47: Sugarcane bagasse, Btu/ton | C47: 12381771.31 | E47: OR-GREET 3.0
B48: Sugarcane bagasse, Btu/metric tonne | C48: =C47*1000/(2000*0.4536) -> 13648336.98 | F48: =C48*100*0.5 -> 682416849.2 | G48: btu of energy avail (theoretical) | H48: *Staff to Fix; This Cell has Formula Dependents
B49: Bagasse yield: wet tonne per wet tonne of sugarcane | C49: 0.28 | E49: OR-GREET 3.0
B50: Moisture in bagasse | C50: 0.5 | E50: OR-GREET 3.0 | F50: =F48*0.3 -> 204725054.8 | G50: combustion efficiency | H50: *Staff to Fix; This Cell has Formula Dependents
B51: Steam generation efficiency | C51: 0.8 | E51: OR-GREET 3.0 | F51: =F50*0.8 -> 163780043.8 | G51: steam boiler efficiency | H51: *Staff to Fix; This Cell has Formula Dependents
B52: Power Generation Efficiency | C52: 0.3 | E52: OR-GREET 3.0 | F52: =F51*0.99 -> 162142243.4 | G52: electrical generator efficiency | H52: *Staff to Fix; This Cell has Formula Dependents
B53: l. Sugarcane bagasse, emissions, grams/mmBtu fuel burned | C53: Small Industrial Boiler | E53: OR-GREET 3.0 | F53: =F52/3412.96 -> 47507.80653 | G53: kWh
B54: m. Electricity Mix emissions, grams/mmBtu Available at User Sites | C54: Brazil Electricity Mix | E54: OR-GREET 3.0 | F54: =F53/0.99 -> 47987.68336
B55: n. Electric Transmission and Distribution Loss | C55: 8.1% (Brazil) | E55: OR-GREET 3.0
B56: o. Global Warming Potentials of GHGs
B57: Carbon and Sulfur Ratios of Pollutants | D57: GWP relative to CO2
B58: Carbon ratio of VOC | C58: 0.85 | D58: =C58/C61 -> 3.116666667 | E58: OR-GREET 3.0
B59: Carbon ratio of CO | C59: =12/28 -> 0.4285714286 | D59: =C59/C61 -> 1.571428571 | E59: OR-GREET 3.0
B60: Carbon ratio of CH4 | C60: =12/16 -> 0.75
B61: Carbon ratio of CO2 | C61: =12/44 -> 0.2727272727
B62: Sulfur ratio of SO2 | C62: =32/64 -> 0.5
B66: 1. Gopal, A. and Kammen, D., 2009. “Molasses for ethanol: the economic and environmental impacts of a new pathway for the
B67: lifecycle greenhouse gas analysis of sugarcane ethanol,” (Table 1), Gopal, A., and Kammen, D., Environmental Research Letters, 4 (2009) 044005 (5pp).
B73: Ethanol fuel properties
B75: Density of EtOH, grams/gal | D75: 2988 | E75: (OR-GREET 3.0)
D76: LHV | E76: Ton to MT | H76: Btu/dry m.t.
B77: Sugarcane bagasse, Btu/ton | D77: 12381771.31 | E77: 0.9072 | G77: Bagasse, Btu/metric ton | H77: ='Old Fuel_Specs'!D77/E77 -> 13648336.98
B78: Bagasse yield: wet tonne per wet tonne of sugarcane | C78: 0.28 | G78: steam generation efficiency | H78: 0.8
B79: Moisture in bagasse | C79: 0.5 | G79: Power Generation Efficiency | H79: 0.3
G80: Less Enthalpy of Steam Leaving the Steam Generator* (assume steam is saturated at exit of turbine/steam generator)
G82: Hv,sat = 1194.4 Btu/lb | H82: =1194.4*2.2046 -> 2633.17424 | I82: Btu/kg
G83: (150 psi, 358 F) | H83: =H82*1000 -> 2633174.24 | I83: Btu/tonne
